Workbook

Sheet Instructions
A1: This workbook is provided for convenience and illustration, and is not to be used for final decision. The calculations are not guaranteed.
A2: The values in highlighted cells (yellow) are to be changed
A5: Index | B5: Choose trawl or setline
A6: Starting Point | B6: The PSC when the standardized primary index is 1.0 and the secondary index has no effect
A7: Ceiling | B7: The maximum PSC limit
A8: Floor | B8: The minimum PSC limit
A9: Breakpoint | B9: The value of the standardized primary index where the slope changes or is affected by the secondary index
A10: Slope Multiplier | B10: The multiplier on the slope when above or below the breakpoints
A11: Constraint | B11: The maximum annual percent change in the PSC limit
A12: Standardize | B12: The year or the mean to standardize the index to
A15: Cells are colored orange when the PSC limit hits the ceiling, and are colored blue when it hits the floor
A17: The "what-if" is completely adhoc and is not a projection of the index, but an illustration of what may happen if the indices were those values
A20: Table 2‑3. | B20: Combination of alternatives included in analysis. Numbering for each alternative shows the Overarching Alternative (1,2,3) then secondary numbering to group sub-sets by similar elements and options (e.g., 201, 3-1). See Figure 2‑8 for further explanation of selections of Elements and Options to formulate each alternative shown. Each index is standardized to the most recent year, unless “mean” is specified which implies it is standardized to the mean of the series from 1998 to the current year. “By gear” means that the trawl index is linked to the trawl fishery and likewise for non-trawl gear. Elements (1-3) apply 20:80 ratio between non-trawl and trawl PSC to calculate gear-specific starting points (S.P. Element 1), Ceilings (Element 2) and floors (Element 3). “Constraint” indicates how much a PSC limit can change from one year to the next (Element 6) while “type” indicates whether it is a continuous control rule with or without breakpoints or a ‘Look up Table” from Element 7 and shown as “discrete”.
E21: Elements
C22: Indices used | E22: 1 | F22: 2 | G22: 3 | H22: 4 | I22: 5 | J22: 6 | K22: 7
A23: Alternative | B23: Source | C23: Primary | D23: Secondary | E23: Starting point | F23: Ceiling | G23: Floor | H23: Break points | I23: Responsiveness | J23: Constraint | K23: Type
A24: 1 | B24: Status quo | C24: NA | D24: NA | E24: 3,515
A25: 2.1 | B25: WG | C25: By gear | D25: NA | E25: 3,515 | F25: 4,426 | G25: 1,758 | H25: none | I25: 01:01:00 | J25: 15% max | K25: Continuous
A26: 2-1.a | B26: WG | C26: By gear | D26: NA | E26: 3,515 | F26: 4,426 | G26: 1,758 | H26: none | I26: 01:01:00 | J26: none | K26: Continuous
A27: 2-1.b | B27: SSC | C27: By gear | D27: NA | E27: 1,958 | F27: 4,426 | G27: 1,758 | H27: none | I27: 01:01:00 | J27: 15% max | K27: Continuous
A28: 2019-02-02 | B28: Stakeholder | C28: By gear | D28: NA | E28: 3,515 | F28: 4,426 | G28: 2,354 | H28: specified | I28: Stairsteps | J28: 2 yr avg | K28: Continuous
A29: 2019-02-03 | B29: Stakeholder | C29: By gear | D29: NA | E29: 3,515 | F29: 4,426 | G29: 2,354 | H29: none | I29: 01:01:00 | J29: 15% max | K29: Continuous
A30: 2019-02-04 | B30: Stakeholder | C30: By gear | D30: NA | E30: 2,018 | F30: 3,515 | G30: 1,000 | H30: Start | I30: 1:1 (low) 0.5:1 (high) | J30: 15% max | K30: Continuous
A31: 2019-03-01 | B31: WG | C31: By gear | D31: Other (mean) | E31: 3,515 | F31: 4,426 | G31: 1,758 | H31: ±25% | I31: 01:01:00 | J31: 15% max | K31: Continuous
A32: 3-1.a | B32: WG | C32: By gear | D32: Other (mean) | E32: 3,515 | F32: 4,426 | G32: 1,758 | H32: ±25% | I32: 01:01:00 | J32: none | K32: Continuous
A33: 3-1.b | B33: WG | C33: By gear | D33: Other (mean) | E33: 3,515 | F33: 4,426 | G33: 1,758 | H33: ±25% | I33: 2nd Index 0.5:1 (low),1.5:1 (high) | J33: 15% max | K33: Continuous
A34: 3-1.c | B34: WG | C34: By gear | D34: Other (mean) | E34: 3,515 | F34: 4,426 | G34: 1,758 | H34: ±25% | I34: 01:01:00 | J34: 15% max | K34: Discrete
A35: 3-1.d | B35: SSC | C35: By gear | D35: Other (mean) | E35: 1,958 | F35: 4,426 | G35: 1,758 | H35: ±25% | I35: 01:01:00 | J35: 15% max | K35: Continuous
A36: 3-2.a | B36: Stakeholder | C36: Gear (mean) | D36: Other (mean) | E36: 2,941 | F36: 4,124 | G36: 1,758 | H36: none | I36: Interpolated | J36: 15% max | K36: Discrete
A37: 3-2.b | B37: WG | C37: Gear (mean) | D37: Other (mean) | E37: 2,941 | F37: 4,124 | G37: 1,758 | H37: none | I37: 01:01:00 | J37: 15% max | K37: Discrete
A38: 3-3a | B38: Stakeholder | C38: Setline | D38: Trawl (mean) | E38: 1,958 | F38: 3,515 | G38: 1,000 | H38: S.P | I38: Secondary 0.35:1 | J38: 20% max | K38: Continuous
A39: 3-3b | B39: WG | C39: Trawl | D39: Setline (mean) | E39: 1,958 | F39: 3,515 | G39: 1,000 | H39: S.P | I39: Secondary 0.35:1 | J39: 20% max | K39: Continuous

Sheet Alternatives
A1: Alternative | D1: 1 | F1: 2-1 | H1: 2-2 | J1: 2-3 | L1: 2-4 | N1: 3-1 | P1: 3-2a | R1: 3-3a
A2: Year | B2: Trawl index | C2: Setline index | D2: Trawl | E2: Non-trawl | F2: Trawl | G2: Non-trawl | H2: Trawl | I2: Non-trawl | J2: Trawl | K2: Non-trawl | L2: Trawl | M2: Non-trawl | N2: Trawl | O2: Non-trawl | P2: Trawl | Q2: Non-trawl | R2: Trawl | S2: Non-trawl | U2: Actual trawl PSC Limit | V2: Actual non-trawl PSC Limit | W2: Actual PSC Limit
A3: 1998 | B3: =Indices!B2 -> 161256 | C3: =Indices!C2 -> 18502 | D3: ='Alt1'!G15 -> 2,805 | E3: ='Alt1'!H15 -> 710 | F3: ='Alt2-1'!G32 -> 3,532 | G3: ='Alt2-1'!G58 -> 894 | H3: ='Alt2-2'!D32 -> 2,025 | I3: ='Alt2-2'!J32 -> 894 | J3: ='Alt2-3'!G32 -> 3,532 | K3: ='Alt2-3'!G58 -> 894 | L3: ='Alt2-4'!G32 -> 2,805 | M3: ='Alt2-4'!G58 -> 710 | N3: ='Alt3-1'!I32 -> 3,532 | O3: ='Alt3-1'!I58 -> 894 | P3: ='Alt3-2a'!I32 -> 3,241 | Q3: ='Alt3-2a'!I72 -> 820 | R3: ='Alt3-3a'!I32 -> 2,805 | S3: ='Alt3-3a'!I58 -> 710 | U3: 3734 | V3: 842 | W3: =SUM(U3:V3) -> 4576
A4: 1999 | B4: =Indices!B3 -> 129116 | C4: =Indices!C3 -> 16201 | D4: ='Alt1'!G16 -> 2,805 | E4: ='Alt1'!H16 -> 710 | F4: ='Alt2-1'!G33 -> 3,002 | G4: ='Alt2-1'!G59 -> 894 | H4: ='Alt2-2'!D33 -> 2,025 | I4: ='Alt2-2'!J33 -> 894 | J4: ='Alt2-3'!G33 -> 3,002 | K4: ='Alt2-3'!G59 -> 894 | L4: ='Alt2-4'!G33 -> 2,631 | M4: ='Alt2-4'!G59 -> 710 | N4: ='Alt3-1'!I33 -> 3,532 | O4: ='Alt3-1'!I59 -> 894 | P4: ='Alt3-2a'!I33 -> 3,096 | Q4: ='Alt3-2a'!I73 -> 784 | R4: ='Alt3-3a'!I33 -> 2,805 | S4: ='Alt3-3a'!I59 -> 710 | U4: 3734 | V4: 842 | W4: =SUM(U4:V4) -> 4576
A5: 2000 | B5: =Indices!B4 -> 118677 | C5: =Indices!C4 -> 16203 | D5: ='Alt1'!G17 -> 2,805 | E5: ='Alt1'!H17 -> 710 | F5: ='Alt2-1'!G34 -> 2,648 | G5: ='Alt2-1'!G60 -> 894 | H5: ='Alt2-2'!D34 -> 1,745 | I5: ='Alt2-2'!J34 -> 894 | J5: ='Alt2-3'!G34 -> 2,648 | K5: ='Alt2-3'!G60 -> 894 | L5: ='Alt2-4'!G34 -> 2,632 | M5: ='Alt2-4'!G60 -> 710 | N5: ='Alt3-1'!I34 -> 3,532 | O5: ='Alt3-1'!I60 -> 894 | P5: ='Alt3-2a'!I34 -> 3,023 | Q5: ='Alt3-2a'!I74 -> 765 | R5: ='Alt3-3a'!I34 -> 2,805 | S5: ='Alt3-3a'!I60 -> 710 | U5: 3734 | V5: 842 | W5: 4576
A6: 2001 | B6: =Indices!B5 -> 141219 | C6: =Indices!C5 -> 13780 | D6: ='Alt1'!G18 -> 2,805 | E6: ='Alt1'!H18 -> 710 | F6: ='Alt2-1'!G35 -> 3,045 | G6: ='Alt2-1'!G61 -> 894 | H6: ='Alt2-2'!D35 -> 2,025 | I6: ='Alt2-2'!J35 -> 894 | J6: ='Alt2-3'!G35 -> 3,045 | K6: ='Alt2-3'!G61 -> 894 | L6: ='Alt2-4'!G35 -> 2,358 | M6: ='Alt2-4'!G61 -> 710 | N6: ='Alt3-1'!I35 -> 3,532 | O6: ='Alt3-1'!I61 -> 894 | P6: ='Alt3-2a'!I35 -> 2,950 | Q6: ='Alt3-2a'!I75 -> 747 | R6: ='Alt3-3a'!I35 -> 2,805 | S6: ='Alt3-3a'!I61 -> 710 | U6: 3734 | V6: 842 | W6: 4576
A7: 2002 | B7: =Indices!B6 -> 101706 | C7: =Indices!C6 -> 12104 | D7: ='Alt1'!G19 -> 2,805 | E7: ='Alt1'!H19 -> 710 | F7: ='Alt2-1'!G36 -> 2,589 | G7: ='Alt2-1'!G62 -> 894 | H7: ='Alt2-2'!D36 -> 1,745 | I7: ='Alt2-2'!J36 -> 894 | J7: ='Alt2-3'!G36 -> 2,589 | K7: ='Alt2-3'!G62 -> 894 | L7: ='Alt2-4'!G36 -> 2,169 | M7: ='Alt2-4'!G62 -> 692 | N7: ='Alt3-1'!I36 -> 3,518 | O7: ='Alt3-1'!I62 -> 894 | P7: ='Alt3-2a'!I36 -> 2,665 | Q7: ='Alt3-2a'!I76 -> 675 | R7: ='Alt3-3a'!I36 -> 2,545 | S7: ='Alt3-3a'!I62 -> 643 | U7: 3734 | V7: 842 | W7: 4576
A8: 2003 | B8: =Indices!B7 -> 132151 | C8: =Indices!C7 -> 10866 | D8: ='Alt1'!G20 -> 2,805 | E8: ='Alt1'!H20 -> 710 | F8: ='Alt2-1'!G37 -> 2,949 | G8: ='Alt2-1'!G63 -> 894 | H8: ='Alt2-2'!D37 -> 1,745 | I8: ='Alt2-2'!J37 -> 894 | J8: ='Alt2-3'!G37 -> 2,949 | K8: ='Alt2-3'!G63 -> 894 | L8: ='Alt2-4'!G37 -> 2,030 | M8: ='Alt2-4'!G63 -> 621 | N8: ='Alt3-1'!I37 -> 3,532 | O8: ='Alt3-1'!I63 -> 894 | P8: ='Alt3-2a'!I37 -> 2,665 | Q8: ='Alt3-2a'!I77 -> 675 | R8: ='Alt3-3a'!I37 -> 2,406 | S8: ='Alt3-3a'!I63 -> 608 | U8: 3734 | V8: 842 | W8: 4576
A9: 2004 | B9: =Indices!B8 -> 130075 | C9: =Indices!C8 -> 9987 | D9: ='Alt1'!G21 -> 2,805 | E9: ='Alt1'!H21 -> 710 | F9: ='Alt2-1'!G38 -> 2,903 | G9: ='Alt2-1'!G64 -> 894 | H9: ='Alt2-2'!D38 -> 2,025 | I9: ='Alt2-2'!J38 -> 894 | J9: ='Alt2-3'!G38 -> 2,903 | K9: ='Alt2-3'!G64 -> 894 | L9: ='Alt2-4'!G38 -> 1,931 | M9: ='Alt2-4'!G64 -> 571 | N9: ='Alt3-1'!I38 -> 3,319 | O9: ='Alt3-1'!I64 -> 894 | P9: ='Alt3-2a'!I38 -> 2,665 | Q9: ='Alt3-2a'!I78 -> 675 | R9: ='Alt3-3a'!I38 -> 2,205 | S9: ='Alt3-3a'!I64 -> 557 | U9: 3734 | V9: 842 | W9: 4576
A10: 2005 | B10: =Indices!B9 -> 132518 | C10: =Indices!C9 -> 9550 | D10: ='Alt1'!G22 -> 2,805 | E10: ='Alt1'!H22 -> 710 | F10: ='Alt2-1'!G39 -> 2,957 | G10: ='Alt2-1'!G65 -> 894 | H10: ='Alt2-2'!D39 -> 2,025 | I10: ='Alt2-2'!J39 -> 710 | J10: ='Alt2-3'!G39 -> 2,957 | K10: ='Alt2-3'!G65 -> 894 | L10: ='Alt2-4'!G39 -> 1,882 | M10: ='Alt2-4'!G65 -> 546 | N10: ='Alt3-1'!I39 -> 3,202 | O10: ='Alt3-1'!I65 -> 894 | P10: ='Alt3-2a'!I39 -> 2,525 | Q10: ='Alt3-2a'!I79 -> 639 | R10: ='Alt3-3a'!I39 -> 2,120 | S10: ='Alt3-3a'!I65 -> 536 | U10: 3734 | V10: 842 | W10: 4576
A11: 2006 | B11: =Indices!B10 -> 155964 | C11: =Indices!C10 -> 9802 | D11: ='Alt1'!G23 -> 2,805 | E11: ='Alt1'!H23 -> 710 | F11: ='Alt2-1'!G40 -> 3,401 | G11: ='Alt2-1'!G66 -> 894 | H11: ='Alt2-2'!D40 -> 2,025 | I11: ='Alt2-2'!J40 -> 710 | J11: ='Alt2-3'!G40 -> 3,401 | K11: ='Alt2-3'!G66 -> 894 | L11: ='Alt2-4'!G40 -> 1,910 | M11: ='Alt2-4'!G66 -> 560 | N11: ='Alt3-1'!I40 -> 3,532 | O11: ='Alt3-1'!I66 -> 894 | P11: ='Alt3-2a'!I40 -> 2,665 | Q11: ='Alt3-2a'!I80 -> 675 | R11: ='Alt3-3a'!I40 -> 2,277 | S11: ='Alt3-3a'!I66 -> 575 | U11: 3734 | V11: 842 | W11: 4576
A12: 2007 | B12: =Indices!B11 -> 143903 | C12: =Indices!C11 -> 9673 | D12: ='Alt1'!G24 -> 2,805 | E12: ='Alt1'!H24 -> 710 | F12: ='Alt2-1'!G41 -> 3,211 | G12: ='Alt2-1'!G67 -> 894 | H12: ='Alt2-2'!D41 -> 2,025 | I12: ='Alt2-2'!J41 -> 710 | J12: ='Alt2-3'!G41 -> 3,211 | K12: ='Alt2-3'!G67 -> 894 | L12: ='Alt2-4'!G41 -> 1,895 | M12: ='Alt2-4'!G67 -> 553 | N12: ='Alt3-1'!I41 -> 3,504 | O12: ='Alt3-1'!I67 -> 894 | P12: ='Alt3-2a'!I41 -> 2,665 | Q12: ='Alt3-2a'!I81 -> 675 | R12: ='Alt3-3a'!I41 -> 2,196 | S12: ='Alt3-3a'!I67 -> 555 | U12: 3734 | V12: 842 | W12: 4576
A13: 2008 | B13: =Indices!B12 -> 140247 | C13: =Indices!C12 -> 10264 | D13: ='Alt1'!G25 -> 2,805 | E13: ='Alt1'!H25 -> 710 | F13: ='Alt2-1'!G42 -> 3,130 | G13: ='Alt2-1'!G68 -> 894 | H13: ='Alt2-2'!D42 -> 2,025 | I13: ='Alt2-2'!J42 -> 894 | J13: ='Alt2-3'!G42 -> 3,130 | K13: ='Alt2-3'!G68 -> 894 | L13: ='Alt2-4'!G42 -> 1,962 | M13: ='Alt2-4'!G68 -> 586 | N13: ='Alt3-1'!I42 -> 3,532 | O13: ='Alt3-1'!I68 -> 894 | P13: ='Alt3-2a'!I42 -> 2,665 | Q13: ='Alt3-2a'!I82 -> 675 | R13: ='Alt3-3a'!I42 -> 2,310 | S13: ='Alt3-3a'!I68 -> 584 | U13: 3734 | V13: 842 | W13: 4576
A14: 2009 | B14: =Indices!B13 -> 168102 | C14: =Indices!C13 -> 9834 | D14: ='Alt1'!G26 -> 2,805 | E14: ='Alt1'!H26 -> 710 | F14: ='Alt2-1'!G43 -> 3,532 | G14: ='Alt2-1'!G69 -> 894 | H14: ='Alt2-2'!D43 -> 2,025 | I14: ='Alt2-2'!J43 -> 894 | J14: ='Alt2-3'!G43 -> 3,532 | K14: ='Alt2-3'!G69 -> 894 | L14: ='Alt2-4'!G43 -> 1,914 | M14: ='Alt2-4'!G69 -> 562 | N14: ='Alt3-1'!I43 -> 3,532 | O14: ='Alt3-1'!I69 -> 894 | P14: ='Alt3-2a'!I43 -> 2,805 | Q14: ='Alt3-2a'!I83 -> 710 | R14: ='Alt3-3a'!I43 -> 2,337 | S14: ='Alt3-3a'!I69 -> 591 | U14: 3693 | V14: 833 | W14: 4526
A15: 2010 | B15: =Indices!B14 -> 195535 | C15: =Indices!C14 -> 9146 | D15: ='Alt1'!G27 -> 2,805 | E15: ='Alt1'!H27 -> 710 | F15: ='Alt2-1'!G44 -> 3,532 | G15: ='Alt2-1'!G70 -> 894 | H15: ='Alt2-2'!D44 -> 2,325 | I15: ='Alt2-2'!J44 -> 710 | J15: ='Alt2-3'!G44 -> 3,532 | K15: ='Alt2-3'!G70 -> 894 | L15: ='Alt2-4'!G44 -> 1,836 | M15: ='Alt2-4'!G70 -> 523 | N15: ='Alt3-1'!I44 -> 3,532 | O15: ='Alt3-1'!I70 -> 894 | P15: ='Alt3-2a'!I44 -> 2,950 | Q15: ='Alt3-2a'!I84 -> 747 | R15: ='Alt3-3a'!I44 -> 2,306 | S15: ='Alt3-3a'!I70 -> 583 | U15: 3684 | V15: 842 | W15: 4526
A16: 2011 | B16: =Indices!B15 -> 186666 | C16: =Indices!C15 -> 8669 | D16: ='Alt1'!G28 -> 2,805 | E16: ='Alt1'!H28 -> 710 | F16: ='Alt2-1'!G45 -> 3,532 | G16: ='Alt2-1'!G71 -> 862 | H16: ='Alt2-2'!D45 -> 2,325 | I16: ='Alt2-2'!J45 -> 710 | J16: ='Alt2-3'!G45 -> 3,532 | K16: ='Alt2-3'!G71 -> 862 | L16: ='Alt2-4'!G45 -> 1,782 | M16: ='Alt2-4'!G71 -> 495 | N16: ='Alt3-1'!I45 -> 3,532 | O16: ='Alt3-1'!I71 -> 894 | P16: ='Alt3-2a'!I45 -> 2,805 | Q16: ='Alt3-2a'!I85 -> 710 | R16: ='Alt3-3a'!I45 -> 2,163 | S16: ='Alt3-3a'!I71 -> 547 | U16: 3634 | V16: 842 | W16: 4476
A17: 2012 | B17: =Indices!B16 -> 189000 | C17: =Indices!C16 -> 8403 | D17: ='Alt1'!G29 -> 2,805 | E17: ='Alt1'!H29 -> 710 | F17: ='Alt2-1'!G46 -> 3,532 | G17: ='Alt2-1'!G72 -> 835 | H17: ='Alt2-2'!D46 -> 2,325 | I17: ='Alt2-2'!J46 -> 710 | J17: ='Alt2-3'!G46 -> 3,532 | K17: ='Alt2-3'!G72 -> 835 | L17: ='Alt2-4'!G46 -> 1,752 | M17: ='Alt2-4'!G72 -> 480 | N17: ='Alt3-1'!I46 -> 3,532 | O17: ='Alt3-1'!I72 -> 894 | P17: ='Alt3-2a'!I46 -> 2,878 | Q17: ='Alt3-2a'!I86 -> 728 | R17: ='Alt3-3a'!I46 -> 2,115 | S17: ='Alt3-3a'!I72 -> 534 | U17: 3593 | V17: 833 | W17: 4426
A18: 2013 | B18: =Indices!B17 -> 183989 | C18: =Indices!C17 -> 7989 | D18: ='Alt1'!G30 -> 2,805 | E18: ='Alt1'!H30 -> 710 | F18: ='Alt2-1'!G47 -> 3,532 | G18: ='Alt2-1'!G73 -> 794 | H18: ='Alt2-2'!D47 -> 2,325 | I18: ='Alt2-2'!J47 -> 710 | J18: ='Alt2-3'!G47 -> 3,532 | K18: ='Alt2-3'!G73 -> 794 | L18: ='Alt2-4'!G47 -> 1,706 | M18: ='Alt2-4'!G73 -> 456 | N18: ='Alt3-1'!I47 -> 3,532 | O18: ='Alt3-1'!I73 -> 894 | P18: ='Alt3-2a'!I47 -> 2,805 | Q18: ='Alt3-2a'!I87 -> 710 | R18: ='Alt3-3a'!I47 -> 2,002 | S18: ='Alt3-3a'!I73 -> 506 | U18: 3593 | V18: 833 | W18: 4426
A19: 2014 | B19: =Indices!B18 -> 171427 | C19: =Indices!C18 -> 7995 | D19: ='Alt1'!G31 -> 2,805 | E19: ='Alt1'!H31 -> 710 | F19: ='Alt2-1'!G48 -> 3,532 | G19: ='Alt2-1'!G74 -> 795 | H19: ='Alt2-2'!D48 -> 2,325 | I19: ='Alt2-2'!J48 -> 710 | J19: ='Alt2-3'!G48 -> 3,532 | K19: ='Alt2-3'!G74 -> 795 | L19: ='Alt2-4'!G48 -> 1,706 | M19: ='Alt2-4'!G74 -> 457 | N19: ='Alt3-1'!I48 -> 3,532 | O19: ='Alt3-1'!I74 -> 876 | P19: ='Alt3-2a'!I48 -> 2,665 | Q19: ='Alt3-2a'!I88 -> 675 | R19: ='Alt3-3a'!I48 -> 1,949 | S19: ='Alt3-3a'!I74 -> 493 | U19: 3593 | V19: 833 | W19: 4426
A20: 2015 | B20: =Indices!B19 -> 172237 | C20: =Indices!C19 -> 8130 | D20: ='Alt1'!G32 -> 2,805 | E20: ='Alt1'!H32 -> 710 | F20: ='Alt2-1'!G49 -> 3,532 | G20: ='Alt2-1'!G75 -> 808 | H20: ='Alt2-2'!D49 -> 2,025 | I20: ='Alt2-2'!J49 -> 710 | J20: ='Alt2-3'!G49 -> 3,532 | K20: ='Alt2-3'!G75 -> 808 | L20: ='Alt2-4'!G49 -> 1,721 | M20: ='Alt2-4'!G75 -> 465 | N20: ='Alt3-1'!I49 -> 3,532 | O20: ='Alt3-1'!I75 -> 894 | P20: ='Alt3-2a'!I49 -> 2,665 | Q20: ='Alt3-2a'!I89 -> 675 | R20: ='Alt3-3a'!I49 -> 1,982 | S20: ='Alt3-3a'!I75 -> 501 | U20: 3593 | V20: 833 | W20: 4426
A21: 2016 | B21: =Indices!B20 -> 153704 | C21: =Indices!C20 -> 7826 | D21: ='Alt1'!G33 -> 2,805 | E21: ='Alt1'!H33 -> 710 | F21: ='Alt2-1'!G50 -> 3,430 | G21: ='Alt2-1'!G76 -> 778 | H21: ='Alt2-2'!D50 -> 2,025 | I21: ='Alt2-2'!J50 -> 710 | J21: ='Alt2-3'!G50 -> 3,430 | K21: ='Alt2-3'!G76 -> 778 | L21: ='Alt2-4'!G50 -> 1,687 | M21: ='Alt2-4'!G76 -> 447 | N21: ='Alt3-1'!I50 -> 3,430 | O21: ='Alt3-1'!I76 -> 778 | P21: ='Alt3-2a'!I50 -> 2,384 | Q21: ='Alt3-2a'!I90 -> 604 | R21: ='Alt3-3a'!I50 -> 1,835 | S21: ='Alt3-3a'!I76 -> 464 | U21: 2805 | V21: 710 | W21: 3515
A22: 2017 | B22: =Indices!B21 -> 126684 | C22: =Indices!C21 -> 7250 | D22: ='Alt1'!G34 -> 2,805 | E22: ='Alt1'!H34 -> 710 | F22: ='Alt2-1'!G51 -> 2,915 | G22: ='Alt2-1'!G77 -> 721 | H22: ='Alt2-2'!D51 -> 2,025 | I22: ='Alt2-2'!J51 -> 710 | J22: ='Alt2-3'!G51 -> 2,915 | K22: ='Alt2-3'!G77 -> 721 | L22: ='Alt2-4'!G51 -> 1,622 | M22: ='Alt2-4'!G77 -> 414 | N22: ='Alt3-1'!I51 -> 2,915 | O22: ='Alt3-1'!I77 -> 721 | P22: ='Alt3-2a'!I51 -> 2,104 | Q22: ='Alt3-2a'!I91 -> 533 | R22: ='Alt3-3a'!I51 -> 1,591 | S22: ='Alt3-3a'!I77 -> 402 | U22: 2805 | V22: 710 | W22: 3515
A23: 2018 | B23: =Indices!B22 -> 125702 | C23: =Indices!C22 -> 7141 | D23: ='Alt1'!G35 -> 2,805 | E23: ='Alt1'!H35 -> 710 | F23: ='Alt2-1'!G52 -> 2,805 | G23: ='Alt2-1'!G78 -> 710 | H23: ='Alt2-2'!D52 -> 2,025 | I23: ='Alt2-2'!J52 -> 710 | J23: ='Alt2-3'!G52 -> 2,805 | K23: ='Alt2-3'!G78 -> 710 | L23: ='Alt2-4'!G52 -> 1,610 | M23: ='Alt2-4'!G78 -> 408 | N23: ='Alt3-1'!I52 -> 2,805 | O23: ='Alt3-1'!I78 -> 710 | P23: ='Alt3-2a'!I52 -> 2,104 | Q23: ='Alt3-2a'!I92 -> 533 | R23: ='Alt3-3a'!I52 -> 1,563 | S23: ='Alt3-3a'!I78 -> 395 | U23: 2805 | V23: 710 | W23: =SUM(U23:V23) -> 3515

Sheet Alt1
A1: PSC Limit | B1: Primary Index | C1: Second Index | F1: Element 1 | G1: Element 2 | H1: Element 3
A2: Trawl | B2: NA | C2: NA | E2: Gear | F2: Starting point | G2: Ceiling | H2: Floor
A3: Non-trawl | B3: NA | C3: NA | E3: Trawl | F3: 2805 | G3: NA | H3: NA
E4: Non-trawl | F4: 710 | G4: NA | H4: NA
E5: Total | F5: =SUM(F3:F4) -> 3515 | G5: NA | H5: NA
A6: Element 4: Breakpoint
A7: Low Threshold | B7: NA | D7: Element 5: slope multiplier | G7: Element 6 Constraint
A8: High Threshold | B8: NA | D8: Low Multiplier | E8: NA | G8: Up | H8: NA
D9: High Multiplier | E9: NA | G9: Down | H9: NA
A10: Standardized Year or Mean
B11: Primary | C11: Secondary
A12: Trawl | B12: 2018 | C12: NA | D12: =IF(B12="Mean",AVERAGE(B15:B35),VLOOKUP(B12,A15:B35,2)) -> 125702
A13: Non-trawl | B13: 2018 | C13: NA | D13: =IF(B13="Mean",AVERAGE(D15:D35),VLOOKUP(B13,A15:D35,4)) -> 7141
A14: Year | B14: Index for Trawl PSC Limit | C14: Standardized | D14: Index for Non-trawl PSC | E14: Standardized | G14: Trawl PSC Limit | H14: Non-trawl PSC Limit
A15: 1998 | B15: =Indices!B2 -> 161256 | C15: =B15/D$12 -> 1.2828 | D15: =Indices!C2 -> 18502 | E15: =D15/D$13 -> 2.5910 | G15: =$F$3 -> 2,805 | H15: =$F$4 -> 710
A16: 1999 | B16: =Indices!B3 -> 129116 | C16: 1.0272 | D16: =Indices!C3 -> 16201 | E16: =D16/D$13 -> 2.2687 | G16: 2,805 | H16: 710
A17: 2000 | B17: =Indices!B4 -> 118677 | C17: 0.9441 | D17: =Indices!C4 -> 16203 | E17: =D17/D$13 -> 2.2690 | G17: 2,805 | H17: 710
A18: 2001 | B18: =Indices!B5 -> 141219 | C18: 1.1234 | D18: =Indices!C5 -> 13780 | E18: 1.9297 | G18: 2,805 | H18: 710
A19: 2002 | B19: =Indices!B6 -> 101706 | C19: 0.8091 | D19: =Indices!C6 -> 12104 | E19: 1.6950 | G19: 2,805 | H19: 710
A20: 2003 | B20: =Indices!B7 -> 132151 | C20: 1.0513 | D20: =Indices!C7 -> 10866 | E20: 1.5216 | G20: 2,805 | H20: 710
A21: 2004 | B21: =Indices!B8 -> 130075 | C21: 1.0348 | D21: =Indices!C8 -> 9987 | E21: 1.3985 | G21: 2,805 | H21: 710
A22: 2005 | B22: =Indices!B9 -> 132518 | C22: 1.0542 | D22: =Indices!C9 -> 9550 | E22: 1.3373 | G22: 2,805 | H22: 710
A23: 2006 | B23: =Indices!B10 -> 155964 | C23: 1.2407 | D23: =Indices!C10 -> 9802 | E23: 1.3726 | G23: 2,805 | H23: 710
A24: 2007 | B24: =Indices!B11 -> 143903 | C24: 1.1448 | D24: =Indices!C11 -> 9673 | E24: 1.3546 | G24: 2,805 | H24: 710
A25: 2008 | B25: =Indices!B12 -> 140247 | C25: 1.1157 | D25: =Indices!C12 -> 10264 | E25: 1.4373 | G25: 2,805 | H25: 710
A26: 2009 | B26: =Indices!B13 -> 168102 | C26: 1.3373 | D26: =Indices!C13 -> 9834 | E26: 1.3771 | G26: 2,805 | H26: 710
A27: 2010 | B27: =Indices!B14 -> 195535 | C27: 1.5555 | D27: =Indices!C14 -> 9146 | E27: 1.2808 | G27: 2,805 | H27: 710
A28: 2011 | B28: =Indices!B15 -> 186666 | C28: 1.4850 | D28: =Indices!C15 -> 8669 | E28: 1.2140 | G28: 2,805 | H28: 710
A29: 2012 | B29: =Indices!B16 -> 189000 | C29: 1.5036 | D29: =Indices!C16 -> 8403 | E29: 1.1767 | G29: 2,805 | H29: 710
A30: 2013 | B30: =Indices!B17 -> 183989 | C30: 1.4637 | D30: =Indices!C17 -> 7989 | E30: 1.1188 | G30: 2,805 | H30: 710
A31: 2014 | B31: =Indices!B18 -> 171427 | C31: 1.3638 | D31: =Indices!C18 -> 7995 | E31: 1.1196 | G31: 2,805 | H31: 710
A32: 2015 | B32: =Indices!B19 -> 172237 | C32: 1.3702 | D32: =Indices!C19 -> 8130 | E32: 1.1385 | G32: 2,805 | H32: 710
A33: 2016 | B33: =Indices!B20 -> 153704 | C33: 1.2228 | D33: =Indices!C20 -> 7826 | E33: 1.0959 | G33: 2,805 | H33: 710
A34: 2017 | B34: =Indices!B21 -> 126684 | C34: 1.0078 | D34: =Indices!C21 -> 7250 | E34: 1.0153 | G34: 2,805 | H34: 710
A35: 2018 | B35: =Indices!B22 -> 125702 | C35: 1.0000 | D35: =Indices!C22 -> 7141 | E35: =D35/D$13 -> 1.0000 | G35: 2,805 | H35: 710
A37: what-if | B37: 100000 | C37: =B37/$D$12 -> 0.7955322907 | D37: 9000 | E37: =D37/$D$13 -> 1.260327685 | G37: =$F$3 -> 2,805 | H37: =$F$4 -> 710
A42: The "what-if" is compleetely adhoc and is not a projection of the index, but an illustration of what may happen if the indices were those values
B43: change the what-if values on the "Alternatives" sheet

Sheet Alt2-1
A1: PSC Limit | B1: Primary Index | C1: Second Index | F1: Element 1 | G1: Element 2 | H1: Element 3
A2: Trawl | B2: Trawl | C2: NA | E2: Gear | F2: Starting point | G2: Ceiling | H2: Floor
A3: Non-trawl | B3: Setline | C3: NA | E3: Trawl | F3: 2805 | G3: 3532 | H3: 1403
E4: Non-trawl | F4: 710 | G4: 894 | H4: 355
E5: Total | F5: =SUM(F3:F4) -> 3515 | G5: =SUM(G3:G4) -> 4426 | H5: =SUM(H3:H4) -> 1758
A6: Element 4: Breakpoint
A7: Low Threshold | B7: NA | D7: Element 5: slope multiplier | G7: Element 6 Constraint
A8: High Threshold | B8: NA | D8: Low Multiplier | E8: NA | G8: Up | H8: 15%
D9: High Multiplier | E9: NA | G9: Down | H9: 15%
A10: Standardized Year or Mean
B11: Primary | C11: Secondary
A12: Trawl | B12: 2018 | C12: NA | D12: =IF(B12="Mean",AVERAGE(B32:B52),VLOOKUP(B12,A32:D52,2)) -> 125702
A13: Non-trawl | B13: 2018 | C13: NA | D13: =IF(B13="Mean",AVERAGE(B58:B78),VLOOKUP(B13,A58:D78,2)) -> 7141
A30: TRAWL PSC LIMIT
A31: Year | B31: Primary index | C31: Standardized Primary | E31: PSC Limit without Element 6 | F31: % change without element 6 | G31: PSC Limit with Element 6 | H31: Potential Percent change | I31: Actual Percent Change | O31: Floor | P31: Ceiling
A32: 1998 | B32: =IF($B$2="Trawl",Indices!B2,Indices!C2) -> 161256 | C32: =B32/D$12 -> 1.2828 | E32: =MIN($G$3,MAX($H$3,(1-(1-C32)*1)*$F$3)) -> 3,532 | G32: =E32 -> 3,532 | O32: =$H$3 -> 1403 | P32: =$G$3 -> 3532
A33: 1999 | B33: =IF($B$2="Trawl",Indices!B3,Indices!C3) -> 129116 | C33: 1.0272 | E33: 2,881 | F33: =(E33-E32)/E32 -> -18% | G33: =IF(H33>0,IF(ABS(H33)>$H$8,G32*(1+SIGN(H33)*$H$8),E33),IF(ABS(H33)>$H$9,G32*(1+SIGN(H33)*$H$9),E33)) -> 3,002 | H33: =(E33-G32)/G32 -> -18% | I33: =(G33-G32)/G32 -> -15% | O33: 1403 | P33: 3532
A34: 2000 | B34: =IF($B$2="Trawl",Indices!B4,Indices!C4) -> 118677 | C34: 0.9441 | E34: 2,648 | F34: =(E34-E33)/E33 -> -8% | G34: 2,648 | H34: -12% | I34: =(G34-G33)/G33 -> -12% | O34: 1403 | P34: 3532
A35: 2001 | B35: =IF($B$2="Trawl",Indices!B5,Indices!C5) -> 141219 | C35: 1.1234 | E35: 3,151 | F35: 19% | G35: 3,045 | H35: 19% | I35: =(G35-G34)/G34 -> 15% | O35: 1403 | P35: 3532
A36: 2002 | B36: =IF($B$2="Trawl",Indices!B6,Indices!C6) -> 101706 | C36: 0.8091 | E36: 2,270 | F36: -28% | G36: 2,589 | H36: -25% | I36: -15% | O36: 1403 | P36: 3532
A37: 2003 | B37: =IF($B$2="Trawl",Indices!B7,Indices!C7) -> 132151 | C37: 1.0513 | E37: 2,949 | F37: 30% | G37: 2,949 | H37: 14% | I37: 14% | O37: 1403 | P37: 3532
A38: 2004 | B38: =IF($B$2="Trawl",Indices!B8,Indices!C8) -> 130075 | C38: 1.0348 | E38: 2,903 | F38: -2% | G38: 2,903 | H38: -2% | I38: -2% | O38: 1403 | P38: 3532
A39: 2005 | B39: =IF($B$2="Trawl",Indices!B9,Indices!C9) -> 132518 | C39: 1.0542 | E39: 2,957 | F39: 2% | G39: 2,957 | H39: 2% | I39: 2% | O39: 1403 | P39: 3532
A40: 2006 | B40: =IF($B$2="Trawl",Indices!B10,Indices!C10) -> 155964 | C40: 1.2407 | E40: 3,480 | F40: 18% | G40: 3,401 | H40: 18% | I40: 15% | O40: 1403 | P40: 3532
A41: 2007 | B41: =IF($B$2="Trawl",Indices!B11,Indices!C11) -> 143903 | C41: 1.1448 | E41: 3,211 | F41: -8% | G41: 3,211 | H41: -6% | I41: -6% | O41: 1403 | P41: 3532
A42: 2008 | B42: =IF($B$2="Trawl",Indices!B12,Indices!C12) -> 140247 | C42: 1.1157 | E42: 3,130 | F42: -3% | G42: 3,130 | H42: -3% | I42: -3% | O42: 1403 | P42: 3532
A43: 2009 | B43: =IF($B$2="Trawl",Indices!B13,Indices!C13) -> 168102 | C43: 1.3373 | E43: 3,532 | F43: 13% | G43: 3,532 | H43: 13% | I43: 13% | O43: 1403 | P43: 3532
A44: 2010 | B44: =IF($B$2="Trawl",Indices!B14,Indices!C14) -> 195535 | C44: 1.5555 | E44: 3,532 | F44: 0% | G44: 3,532 | H44: 0% | I44: 0% | O44: 1403 | P44: 3532
A45: 2011 | B45: =IF($B$2="Trawl",Indices!B15,Indices!C15) -> 186666 | C45: 1.4850 | E45: 3,532 | F45: 0% | G45: 3,532 | H45: 0% | I45: 0% | O45: 1403 | P45: 3532
A46: 2012 | B46: =IF($B$2="Trawl",Indices!B16,Indices!C16) -> 189000 | C46: 1.5036 | E46: 3,532 | F46: 0% | G46: 3,532 | H46: 0% | I46: 0% | O46: 1403 | P46: 3532
A47: 2013 | B47: =IF($B$2="Trawl",Indices!B17,Indices!C17) -> 183989 | C47: 1.4637 | E47: 3,532 | F47: 0% | G47: 3,532 | H47: 0% | I47: 0% | O47: 1403 | P47: 3532
A48: 2014 | B48: =IF($B$2="Trawl",Indices!B18,Indices!C18) -> 171427 | C48: 1.3638 | E48: 3,532 | F48: 0% | G48: 3,532 | H48: 0% | I48: 0% | O48: 1403 | P48: 3532
A49: 2015 | B49: =IF($B$2="Trawl",Indices!B19,Indices!C19) -> 172237 | C49: 1.3702 | E49: 3,532 | F49: 0% | G49: 3,532 | H49: 0% | I49: 0% | O49: 1403 | P49: 3532
A50: 2016 | B50: =IF($B$2="Trawl",Indices!B20,Indices!C20) -> 153704 | C50: 1.2228 | E50: 3,430 | F50: -3% | G50: 3,430 | H50: -3% | I50: -3% | O50: 1403 | P50: 3532
A51: 2017 | B51: =IF($B$2="Trawl",Indices!B21,Indices!C21) -> 126684 | C51: 1.0078 | E51: 2,827 | F51: -18% | G51: 2,915 | H51: -18% | I51: -15% | O51: 1403 | P51: 3532
A52: 2018 | B52: =IF($B$2="Trawl",Indices!B22,Indices!C22) -> 125702 | C52: 1.0000 | E52: 2,805 | F52: -1% | G52: 2,805 | H52: -4% | I52: -4%
A54: what-if | B54: 100000 | C54: =B54/$D$12 -> 0.7955322907 | E54: =MIN($G$3,MAX($H$3,(1-(1-C54)*1)*$F$3)) -> 2,231 | F54: =(E54-E51)/E51 -> -21% | G54: =IF(ABS(H54)>$H$8,G51*(1+SIGN(H54)*$H$8),E54) -> 2,478 | H54: =(E54-G51)/G51 -> -23% | I54: =(G54-G51)/G51 -> -15%
A56: NON-TRAWL PSC LIMIT
A57: Year | B57: Primary index | C57: Standardized Primary | E57: PSC Limit without Element 6 | F57: % change without element 6 | G57: PSC Limit with Element 6 | H57: Potential Percent change | I57: Actual Percent Change | O57: Floor | P57: Ceiling
A58: 1998 | B58: =IF($B$3="Trawl",Indices!B2,Indices!C2) -> 18502 | C58: =B58/D$13 -> 2.5910 | E58: =MIN($G$4,MAX($H$4,(1-(1-C58)*1)*$F$4)) -> 894 | G58: =E58 -> 894 | O58: =$H$4 -> 355 | P58: =$G$4 -> 894
A59: 1999 | B59: =IF($B$3="Trawl",Indices!B3,Indices!C3) -> 16201 | C59: =B59/D$13 -> 2.2687 | E59: 894 | F59: =(E59-E58)/E58 -> 0% | G59: =IF(H59>0,IF(ABS(H59)>$H$8,G58*(1+SIGN(H59)*$H$8),E59),IF(ABS(H59)>$H$9,G58*(1+SIGN(H59)*$H$9),E59)) -> 894 | H59: =(E59-G58)/G58 -> 0% | I59: =(G59-G58)/G58 -> 0% | O59: =$H$4 -> 355 | P59: =$G$4 -> 894
A60: 2000 | B60: =IF($B$3="Trawl",Indices!B4,Indices!C4) -> 16203 | C60: 2.2690 | E60: 894 | F60: =(E60-E59)/E59 -> 0% | G60: 894 | H60: 0% | I60: =(G60-G59)/G59 -> 0% | O60: 355 | P60: 894
A61: 2001 | B61: =IF($B$3="Trawl",Indices!B5,Indices!C5) -> 13780 | C61: 1.9297 | E61: 894 | F61: 0% | G61: 894 | H61: 0% | I61: =(G61-G60)/G60 -> 0% | O61: 355 | P61: 894
A62: 2002 | B62: =IF($B$3="Trawl",Indices!B6,Indices!C6) -> 12104 | C62: 1.6950 | E62: 894 | F62: 0% | G62: 894 | H62: 0% | I62: 0% | O62: 355 | P62: 894
A63: 2003 | B63: =IF($B$3="Trawl",Indices!B7,Indices!C7) -> 10866 | C63: 1.5216 | E63: 894 | F63: 0% | G63: 894 | H63: 0% | I63: 0% | O63: 355 | P63: 894
A64: 2004 | B64: =IF($B$3="Trawl",Indices!B8,Indices!C8) -> 9987 | C64: 1.3985 | E64: 894 | F64: 0% | G64: 894 | H64: 0% | I64: 0% | O64: 355 | P64: 894
A65: 2005 | B65: =IF($B$3="Trawl",Indices!B9,Indices!C9) -> 9550 | C65: 1.3373 | E65: 894 | F65: 0% | G65: 894 | H65: 0% | I65: 0% | O65: 355 | P65: 894
A66: 2006 | B66: =IF($B$3="Trawl",Indices!B10,Indices!C10) -> 9802 | C66: 1.3726 | E66: 894 | F66: 0% | G66: 894 | H66: 0% | I66: 0% | O66: 355 | P66: 894
A67: 2007 | B67: =IF($B$3="Trawl",Indices!B11,Indices!C11) -> 9673 | C67: 1.3546 | E67: 894 | F67: 0% | G67: 894 | H67: 0% | I67: 0% | O67: 355 | P67: 894
A68: 2008 | B68: =IF($B$3="Trawl",Indices!B12,Indices!C12) -> 10264 | C68: 1.4373 | E68: 894 | F68: 0% | G68: 894 | H68: 0% | I68: 0% | O68: 355 | P68: 894
A69: 2009 | B69: =IF($B$3="Trawl",Indices!B13,Indices!C13) -> 9834 | C69: 1.3771 | E69: 894 | F69: 0% | G69: 894 | H69: 0% | I69: 0% | O69: 355 | P69: 894
A70: 2010 | B70: =IF($B$3="Trawl",Indices!B14,Indices!C14) -> 9146 | C70: 1.2808 | E70: 894 | F70: 0% | G70: 894 | H70: 0% | I70: 0% | O70: 355 | P70: 894
A71: 2011 | B71: =IF($B$3="Trawl",Indices!B15,Indices!C15) -> 8669 | C71: 1.2140 | E71: 862 | F71: -4% | G71: 862 | H71: -4% | I71: -4% | O71: 355 | P71: 894
A72: 2012 | B72: =IF($B$3="Trawl",Indices!B16,Indices!C16) -> 8403 | C72: 1.1767 | E72: 835 | F72: -3% | G72: 835 | H72: -3% | I72: -3% | O72: 355 | P72: 894
A73: 2013 | B73: =IF($B$3="Trawl",Indices!B17,Indices!C17) -> 7989 | C73: 1.1188 | E73: 794 | F73: -5% | G73: 794 | H73: -5% | I73: -5% | O73: 355 | P73: 894
A74: 2014 | B74: =IF($B$3="Trawl",Indices!B18,Indices!C18) -> 7995 | C74: 1.1196 | E74: 795 | F74: 0% | G74: 795 | H74: 0% | I74: 0% | O74: 355 | P74: 894
A75: 2015 | B75: =IF($B$3="Trawl",Indices!B19,Indices!C19) -> 8130 | C75: 1.1385 | E75: 808 | F75: 2% | G75: 808 | H75: 2% | I75: 2% | O75: 355 | P75: 894
A76: 2016 | B76: =IF($B$3="Trawl",Indices!B20,Indices!C20) -> 7826 | C76: 1.0959 | E76: 778 | F76: -4% | G76: 778 | H76: -4% | I76: -4% | O76: 355 | P76: 894
A77: 2017 | B77: =IF($B$3="Trawl",Indices!B21,Indices!C21) -> 7250 | C77: 1.0153 | E77: 721 | F77: -7% | G77: 721 | H77: -7% | I77: -7% | O77: 355 | P77: 894
A78: 2018 | B78: =IF($B$3="Trawl",Indices!B22,Indices!C22) -> 7141 | C78: 1.0000 | E78: 710 | F78: -2% | G78: 710 | H78: -2% | I78: -2% | O78: 355 | P78: 894
A80: what-if | B80: 9000 | C80: 1.2603 | E80: =MIN($G$4,MAX($H$4,(1-(1-C80)*1)*$F$4)) -> 894 | F80: =(E80-E77)/E77 -> 24% | G80: =IF(ABS(H80)>$H$8,G77*(1+SIGN(H80)*$H$8),E80) -> 829 | H80: =(E80-G77)/G77 -> 24% | I80: =(G80-G77)/G77 -> 15%

Sheet Alt2-2
A1: PSC Limit | B1: Primary Index | C1: Second Index | E1: Scenario
A2: Trawl | B2: Trawl | C2: NA | E2: Scenario | F2: B
A3: Non-trawl | B3: Setline | C3: NA
A5: Trawl Survey Index Breakpoints | B5: 0 | C5: 100000 | D5: 124000 | E5: 175000 | F5: 200000
A6: Non-Trawl Survey Index Breakpoints | B6: =B7*$D$14 -> 0 | C6: =C7*$D$14 -> 5681 | D6: 7044 | E6: 9942 | F6: 11362 | G6: Determined from trawl breakpoints
A7: Standardized | B7: =B5/$D$13 -> 0 | C7: =C5/$D$13 -> 0.7955322907 | D7: =D5/$D$13 -> 0.9864600404 | E7: =E5/$D$13 -> 1.392181509 | F7: =F5/$D$13 -> 1.591064581
A8: Trawl PSC Limit | B8: 1412 | C8: 1745 | D8: 2025 | E8: 2325 | F8: 2325
A9: Non-trawl PSC Limit | B9: 475 | C9: 525 | D9: 710 | E9: 894 | F9: 894
A11: Standardized Year or Mean
B12: Primary | C12: Secondary
A13: Trawl | B13: 2018 | C13: NA | D13: =IF(B13="Mean",AVERAGE(B32:B52),VLOOKUP(B13,A32:D52,2)) -> 125702
A14: Non-trawl | B14: 2018 | C14: NA | D14: =IF(B14="Mean",AVERAGE(H32:H52),VLOOKUP(B14,G32:J52,2)) -> 7141
A30: TRAWL PSC LIMIT | G30: NON-TRAWL PSC LIMIT
A31: Year | B31: Index | C31: Two-year average | D31: PSC Limit | E31: floor | F31: ceiling | G31: Year | H31: Index | I31: Two-year average | J31: PSC Limit | K31: floor | L31: ceiling
A32: 1998 | B32: =IF($B$2="Trawl",Indices!B2,Indices!C2) -> 161,256 | C32: =B32 -> 161,256 | D32: =HLOOKUP(C32,$B$5:$F$9,4,TRUE) -> 2,025 | E32: =$B$8 -> 1412 | F32: =$F$8 -> 2325 | G32: 1998 | H32: =IF($C$2="Trawl",Indices!B2,Indices!C2) -> 18,502 | I32: =H32 -> 18,502 | J32: =HLOOKUP(I32/$D$14,$B$7:$F$9,3,TRUE) -> 894 | K32: =$B$9 -> 475 | L32: =$F$9 -> 894
A33: 1999 | B33: =IF($B$2="Trawl",Indices!B3,Indices!C3) -> 129,116 | C33: =AVERAGE(B32,B33) -> 145,186 | D33: =HLOOKUP(C33,$B$5:$F$9,4,TRUE) -> 2,025 | E33: =$B$8 -> 1412 | F33: =$F$8 -> 2325 | G33: 1999 | H33: =IF($C$2="Trawl",Indices!B3,Indices!C3) -> 16,201 | I33: =AVERAGE(H32,H33) -> 17,352 | J33: =HLOOKUP(I33/$D$14,$B$7:$F$9,3,TRUE) -> 894 | K33: =$B$9 -> 475 | L33: =$F$9 -> 894
A34: 2000 | B34: =IF($B$2="Trawl",Indices!B4,Indices!C4) -> 118,677 | C34: =AVERAGE(B33,B34) -> 123,897 | D34: 1,745 | E34: 1412 | F34: 2325 | G34: 2000 | H34: =IF($C$2="Trawl",Indices!B4,Indices!C4) -> 16,203 | I34: =AVERAGE(H33,H34) -> 16,202 | J34: 894 | K34: 475 | L34: 894
A35: 2001 | B35: =IF($B$2="Trawl",Indices!B5,Indices!C5) -> 141,219 | C35: 129,948 | D35: 2,025 | E35: 1412 | F35: 2325 | G35: 2001 | H35: =IF($C$2="Trawl",Indices!B5,Indices!C5) -> 13,780 | I35: 14,992 | J35: 894 | K35: 475 | L35: 894
A36: 2002 | B36: =IF($B$2="Trawl",Indices!B6,Indices!C6) -> 101,706 | C36: 121,463 | D36: 1,745 | E36: 1412 | F36: 2325 | G36: 2002 | H36: =IF($C$2="Trawl",Indices!B6,Indices!C6) -> 12,104 | I36: 12,942 | J36: 894 | K36: 475 | L36: 894
A37: 2003 | B37: =IF($B$2="Trawl",Indices!B7,Indices!C7) -> 132,151 | C37: 116,929 | D37: 1,745 | E37: 1412 | F37: 2325 | G37: 2003 | H37: =IF($C$2="Trawl",Indices!B7,Indices!C7) -> 10,866 | I37: 11,485 | J37: 894 | K37: 475 | L37: 894
A38: 2004 | B38: =IF($B$2="Trawl",Indices!B8,Indices!C8) -> 130,075 | C38: 131,113 | D38: 2,025 | E38: 1412 | F38: 2325 | G38: 2004 | H38: =IF($C$2="Trawl",Indices!B8,Indices!C8) -> 9,987 | I38: 10,427 | J38: 894 | K38: 475 | L38: 894
A39: 2005 | B39: =IF($B$2="Trawl",Indices!B9,Indices!C9) -> 132,518 | C39: 131,297 | D39: 2,025 | E39: 1412 | F39: 2325 | G39: 2005 | H39: =IF($C$2="Trawl",Indices!B9,Indices!C9) -> 9,550 | I39: 9,769 | J39: 710 | K39: 475 | L39: 894
A40: 2006 | B40: =IF($B$2="Trawl",Indices!B10,Indices!C10) -> 155,964 | C40: 144,241 | D40: 2,025 | E40: 1412 | F40: 2325 | G40: 2006 | H40: =IF($C$2="Trawl",Indices!B10,Indices!C10) -> 9,802 | I40: 9,676 | J40: 710 | K40: 475 | L40: 894
A41: 2007 | B41: =IF($B$2="Trawl",Indices!B11,Indices!C11) -> 143,903 | C41: 149,934 | D41: 2,025 | E41: 1412 | F41: 2325 | G41: 2007 | H41: =IF($C$2="Trawl",Indices!B11,Indices!C11) -> 9,673 | I41: 9,738 | J41: 710 | K41: 475 | L41: 894
A42: 2008 | B42: =IF($B$2="Trawl",Indices!B12,Indices!C12) -> 140,247 | C42: 142,075 | D42: 2,025 | E42: 1412 | F42: 2325 | G42: 2008 | H42: =IF($C$2="Trawl",Indices!B12,Indices!C12) -> 10,264 | I42: 9,969 | J42: 894 | K42: 475 | L42: 894
A43: 2009 | B43: =IF($B$2="Trawl",Indices!B13,Indices!C13) -> 168,102 | C43: 154,175 | D43: 2,025 | E43: 1412 | F43: 2325 | G43: 2009 | H43: =IF($C$2="Trawl",Indices!B13,Indices!C13) -> 9,834 | I43: 10,049 | J43: 894 | K43: 475 | L43: 894
A44: 2010 | B44: =IF($B$2="Trawl",Indices!B14,Indices!C14) -> 195,535 | C44: 181,819 | D44: 2,325 | E44: 1412 | F44: 2325 | G44: 2010 | H44: =IF($C$2="Trawl",Indices!B14,Indices!C14) -> 9,146 | I44: 9,490 | J44: 710 | K44: 475 | L44: 894
A45: 2011 | B45: =IF($B$2="Trawl",Indices!B15,Indices!C15) -> 186,666 | C45: 191,101 | D45: 2,325 | E45: 1412 | F45: 2325 | G45: 2011 | H45: =IF($C$2="Trawl",Indices!B15,Indices!C15) -> 8,669 | I45: 8,908 | J45: 710 | K45: 475 | L45: 894
A46: 2012 | B46: =IF($B$2="Trawl",Indices!B16,Indices!C16) -> 189,000 | C46: 187,833 | D46: 2,325 | E46: 1412 | F46: 2325 | G46: 2012 | H46: =IF($C$2="Trawl",Indices!B16,Indices!C16) -> 8,403 | I46: 8,536 | J46: 710 | K46: 475 | L46: 894
A47: 2013 | B47: =IF($B$2="Trawl",Indices!B17,Indices!C17) -> 183,989 | C47: 186,495 | D47: 2,325 | E47: 1412 | F47: 2325 | G47: 2013 | H47: =IF($C$2="Trawl",Indices!B17,Indices!C17) -> 7,989 | I47: 8,196 | J47: 710 | K47: 475 | L47: 894
A48: 2014 | B48: =IF($B$2="Trawl",Indices!B18,Indices!C18) -> 171,427 | C48: 177,708 | D48: 2,325 | E48: 1412 | F48: 2325 | G48: 2014 | H48: =IF($C$2="Trawl",Indices!B18,Indices!C18) -> 7,995 | I48: 7,992 | J48: 710 | K48: 475 | L48: 894
A49: 2015 | B49: =IF($B$2="Trawl",Indices!B19,Indices!C19) -> 172,237 | C49: 171,832 | D49: 2,025 | E49: 1412 | F49: 2325 | G49: 2015 | H49: =IF($C$2="Trawl",Indices!B19,Indices!C19) -> 8,130 | I49: 8,063 | J49: 710 | K49: 475 | L49: 894
A50: 2016 | B50: =IF($B$2="Trawl",Indices!B20,Indices!C20) -> 153,704 | C50: 162,971 | D50: 2,025 | E50: 1412 | F50: 2325 | G50: 2016 | H50: =IF($C$2="Trawl",Indices!B20,Indices!C20) -> 7,826 | I50: 7,978 | J50: 710 | K50: 475 | L50: 894
A51: 2017 | B51: =IF($B$2="Trawl",Indices!B21,Indices!C21) -> 126,684 | C51: 140,194 | D51: 2,025 | E51: 1412 | F51: 2325 | G51: 2017 | H51: =IF($C$2="Trawl",Indices!B21,Indices!C21) -> 7,250 | I51: 7,538 | J51: 710 | K51: 475 | L51: 894
A52: 2018 | B52: =IF($B$2="Trawl",Indices!B22,Indices!C22) -> 125,702 | C52: 126,193 | D52: 2,025 | E52: 1412 | F52: 2325 | G52: 2018 | H52: =IF($C$2="Trawl",Indices!B22,Indices!C22) -> 7,141 | I52: 7,196 | J52: 710 | K52: 475 | L52: 894
A54: what-if | B54: 100000 | C54: =B54 -> 100,000 | D54: =HLOOKUP(C54,$B$5:$F$9,4,TRUE) -> 1,745 | G54: what-if | H54: 9000 | I54: =H54 -> 9,000 | J54: =HLOOKUP(I54,$B$5:$F$9,4,TRUE) -> 1,412

Sheet Alt2-3
A1: PSC Limit | B1: Primary Index | C1: Second Index | F1: Element 1 | G1: Element 2 | H1: Element 3
A2: Trawl | B2: Trawl | C2: NA | E2: Gear | F2: Starting point | G2: Ceiling | H2: Floor
A3: Non-trawl | B3: Setline | C3: NA | E3: Trawl | F3: 2805 | G3: 3532 | H3: 1879
E4: Non-trawl | F4: 710 | G4: 894 | H4: 475
E5: Total | F5: =SUM(F3:F4) -> 3515 | G5: =SUM(G3:G4) -> 4426 | H5: =SUM(H3:H4) -> 2354
A6: Element 4: Breakpoint
A7: Low Threshold | B7: NA | D7: Element 5: slope multiplier | G7: Element 6 Constraint
A8: High Threshold | B8: NA | D8: Low Multiplier | E8: NA | G8: Up | H8: 15%
D9: High Multiplier | E9: NA | G9: Down | H9: 15%
A10: Standardized Year or Mean
B11: Primary | C11: Secondary
A12: Trawl | B12: 2018 | D12: =VLOOKUP(B12,A32:D52,2) -> 125702 | E12: =IF(C12="Mean",AVERAGE(D32:D52),VLOOKUP(C12,A32:D52,4)) -> 
A13: Non-trawl | B13: 2018 | D13: =VLOOKUP(B13,A58:D78,2) -> 7141 | E13: =IF(C13="Mean",AVERAGE(D58:D78),VLOOKUP(C13,A58:D78,4)) -> 
A30: TRAWL PSC LIMIT
A31: Year | B31: Primary index | C31: Standardized Primary | E31: PSC Limit without Element 6 | F31: % change without element 6 | G31: PSC Limit with Element 6 | H31: Potential Percent change | I31: Actual Percent Change | O31: Floor | P31: Ceiling
A32: 1998 | B32: =IF($B$2="Trawl",Indices!B2,Indices!C2) -> 161256 | C32: =B32/D$12 -> 1.2828 | E32: =MIN($G$3,MAX($H$3,(1-(1-C32)*1)*$F$3)) -> 3,532 | G32: =E32 -> 3,532 | O32: =$H$3 -> 1879 | P32: =$G$3 -> 3532
A33: 1999 | B33: =IF($B$2="Trawl",Indices!B3,Indices!C3) -> 129116 | C33: 1.0272 | E33: 2,881 | F33: =(E33-E32)/E32 -> -18% | G33: =IF(H33>0,IF(ABS(H33)>$H$8,G32*(1+SIGN(H33)*$H$8),E33),IF(ABS(H33)>$H$9,G32*(1+SIGN(H33)*$H$9),E33)) -> 3,002 | H33: =(E33-G32)/G32 -> -18% | I33: =(G33-G32)/G32 -> -15% | O33: 1879 | P33: 3532
A34: 2000 | B34: =IF($B$2="Trawl",Indices!B4,Indices!C4) -> 118677 | C34: 0.9441 | E34: 2,648 | F34: =(E34-E33)/E33 -> -8% | G34: 2,648 | H34: -12% | I34: =(G34-G33)/G33 -> -12% | O34: 1879 | P34: 3532
A35: 2001 | B35: =IF($B$2="Trawl",Indices!B5,Indices!C5) -> 141219 | C35: 1.1234 | E35: 3,151 | F35: 19% | G35: 3,045 | H35: 19% | I35: =(G35-G34)/G34 -> 15% | O35: 1879 | P35: 3532
A36: 2002 | B36: =IF($B$2="Trawl",Indices!B6,Indices!C6) -> 101706 | C36: 0.8091 | E36: 2,270 | F36: -28% | G36: 2,589 | H36: -25% | I36: -15% | O36: 1879 | P36: 3532
A37: 2003 | B37: =IF($B$2="Trawl",Indices!B7,Indices!C7) -> 132151 | C37: 1.0513 | E37: 2,949 | F37: 30% | G37: 2,949 | H37: 14% | I37: 14% | O37: 1879 | P37: 3532
A38: 2004 | B38: =IF($B$2="Trawl",Indices!B8,Indices!C8) -> 130075 | C38: 1.0348 | E38: 2,903 | F38: -2% | G38: 2,903 | H38: -2% | I38: -2% | O38: 1879 | P38: 3532
A39: 2005 | B39: =IF($B$2="Trawl",Indices!B9,Indices!C9) -> 132518 | C39: 1.0542 | E39: 2,957 | F39: 2% | G39: 2,957 | H39: 2% | I39: 2% | O39: 1879 | P39: 3532
A40: 2006 | B40: =IF($B$2="Trawl",Indices!B10,Indices!C10) -> 155964 | C40: 1.2407 | E40: 3,480 | F40: 18% | G40: 3,401 | H40: 18% | I40: 15% | O40: 1879 | P40: 3532
A41: 2007 | B41: =IF($B$2="Trawl",Indices!B11,Indices!C11) -> 143903 | C41: 1.1448 | E41: 3,211 | F41: -8% | G41: 3,211 | H41: -6% | I41: -6% | O41: 1879 | P41: 3532
A42: 2008 | B42: =IF($B$2="Trawl",Indices!B12,Indices!C12) -> 140247 | C42: 1.1157 | E42: 3,130 | F42: -3% | G42: 3,130 | H42: -3% | I42: -3% | O42: 1879 | P42: 3532
A43: 2009 | B43: =IF($B$2="Trawl",Indices!B13,Indices!C13) -> 168102 | C43: 1.3373 | E43: 3,532 | F43: 13% | G43: 3,532 | H43: 13% | I43: 13% | O43: 1879 | P43: 3532
A44: 2010 | B44: =IF($B$2="Trawl",Indices!B14,Indices!C14) -> 195535 | C44: 1.5555 | E44: 3,532 | F44: 0% | G44: 3,532 | H44: 0% | I44: 0% | O44: 1879 | P44: 3532
A45: 2011 | B45: =IF($B$2="Trawl",Indices!B15,Indices!C15) -> 186666 | C45: 1.4850 | E45: 3,532 | F45: 0% | G45: 3,532 | H45: 0% | I45: 0% | O45: 1879 | P45: 3532
A46: 2012 | B46: =IF($B$2="Trawl",Indices!B16,Indices!C16) -> 189000 | C46: 1.5036 | E46: 3,532 | F46: 0% | G46: 3,532 | H46: 0% | I46: 0% | O46: 1879 | P46: 3532
A47: 2013 | B47: =IF($B$2="Trawl",Indices!B17,Indices!C17) -> 183989 | C47: 1.4637 | E47: 3,532 | F47: 0% | G47: 3,532 | H47: 0% | I47: 0% | O47: 1879 | P47: 3532
A48: 2014 | B48: =IF($B$2="Trawl",Indices!B18,Indices!C18) -> 171427 | C48: 1.3638 | E48: 3,532 | F48: 0% | G48: 3,532 | H48: 0% | I48: 0% | O48: 1879 | P48: 3532
A49: 2015 | B49: =IF($B$2="Trawl",Indices!B19,Indices!C19) -> 172237 | C49: 1.3702 | E49: 3,532 | F49: 0% | G49: 3,532 | H49: 0% | I49: 0% | O49: 1879 | P49: 3532
A50: 2016 | B50: =IF($B$2="Trawl",Indices!B20,Indices!C20) -> 153704 | C50: 1.2228 | E50: 3,430 | F50: -3% | G50: 3,430 | H50: -3% | I50: -3% | O50: 1879 | P50: 3532
A51: 2017 | B51: =IF($B$2="Trawl",Indices!B21,Indices!C21) -> 126684 | C51: 1.0078 | E51: 2,827 | F51: -18% | G51: 2,915 | H51: -18% | I51: -15% | O51: 1879 | P51: 3532
A52: 2018 | B52: =IF($B$2="Trawl",Indices!B22,Indices!C22) -> 125702 | C52: 1.0000 | E52: 2,805 | F52: -1% | G52: 2,805 | H52: -4% | I52: -4%
A54: what-if | B54: 100000 | C54: =B54/$D$12 -> 0.7955322907 | E54: =MIN($G$3,MAX($H$3,(1-(1-C54)*1)*$F$3)) -> 2,231 | F54: =(E54-E51)/E51 -> -21% | G54: =IF(ABS(H54)>$H$8,G51*(1+SIGN(H54)*$H$8),E54) -> 2,478 | H54: =(E54-G51)/G51 -> -23% | I54: =(G54-G51)/G51 -> -15%
A56: NON-TRAWL PSC LIMIT
A57: Year | B57: Primary index | C57: Standardized Primary | E57: PSC Limit without Element 6 | F57: % change without element 6 | G57: PSC Limit with Element 6 | H57: Potential Percent change | I57: Actual Percent Change | O57: Floor | P57: Ceiling
A58: 1998 | B58: =IF($B$3="Trawl",Indices!B2,Indices!C2) -> 18502 | C58: =B58/D$13 -> 2.5910 | E58: =MIN($G$4,MAX($H$4,(1-(1-C58)*1)*$F$4)) -> 894 | G58: =E58 -> 894 | O58: =$H$4 -> 475 | P58: =$G$4 -> 894
A59: 1999 | B59: =IF($B$3="Trawl",Indices!B3,Indices!C3) -> 16201 | C59: =B59/D$13 -> 2.2687 | E59: 894 | F59: =(E59-E58)/E58 -> 0% | G59: =IF(H59>0,IF(ABS(H59)>$H$8,G58*(1+SIGN(H59)*$H$8),E59),IF(ABS(H59)>$H$9,G58*(1+SIGN(H59)*$H$9),E59)) -> 894 | H59: =(E59-G58)/G58 -> 0% | I59: =(G59-G58)/G58 -> 0% | O59: =$H$4 -> 475 | P59: =$G$4 -> 894
A60: 2000 | B60: =IF($B$3="Trawl",Indices!B4,Indices!C4) -> 16203 | C60: 2.2690 | E60: 894 | F60: =(E60-E59)/E59 -> 0% | G60: 894 | H60: 0% | I60: =(G60-G59)/G59 -> 0% | O60: 475 | P60: 894
A61: 2001 | B61: =IF($B$3="Trawl",Indices!B5,Indices!C5) -> 13780 | C61: 1.9297 | E61: 894 | F61: 0% | G61: 894 | H61: 0% | I61: =(G61-G60)/G60 -> 0% | O61: 475 | P61: 894
A62: 2002 | B62: =IF($B$3="Trawl",Indices!B6,Indices!C6) -> 12104 | C62: 1.6950 | E62: 894 | F62: 0% | G62: 894 | H62: 0% | I62: 0% | O62: 475 | P62: 894
A63: 2003 | B63: =IF($B$3="Trawl",Indices!B7,Indices!C7) -> 10866 | C63: 1.5216 | E63: 894 | F63: 0% | G63: 894 | H63: 0% | I63: 0% | O63: 475 | P63: 894
A64: 2004 | B64: =IF($B$3="Trawl",Indices!B8,Indices!C8) -> 9987 | C64: 1.3985 | E64: 894 | F64: 0% | G64: 894 | H64: 0% | I64: 0% | O64: 475 | P64: 894
A65: 2005 | B65: =IF($B$3="Trawl",Indices!B9,Indices!C9) -> 9550 | C65: 1.3373 | E65: 894 | F65: 0% | G65: 894 | H65: 0% | I65: 0% | O65: 475 | P65: 894
A66: 2006 | B66: =IF($B$3="Trawl",Indices!B10,Indices!C10) -> 9802 | C66: 1.3726 | E66: 894 | F66: 0% | G66: 894 | H66: 0% | I66: 0% | O66: 475 | P66: 894
A67: 2007 | B67: =IF($B$3="Trawl",Indices!B11,Indices!C11) -> 9673 | C67: 1.3546 | E67: 894 | F67: 0% | G67: 894 | H67: 0% | I67: 0% | O67: 475 | P67: 894
A68: 2008 | B68: =IF($B$3="Trawl",Indices!B12,Indices!C12) -> 10264 | C68: 1.4373 | E68: 894 | F68: 0% | G68: 894 | H68: 0% | I68: 0% | O68: 475 | P68: 894
A69: 2009 | B69: =IF($B$3="Trawl",Indices!B13,Indices!C13) -> 9834 | C69: 1.3771 | E69: 894 | F69: 0% | G69: 894 | H69: 0% | I69: 0% | O69: 475 | P69: 894
A70: 2010 | B70: =IF($B$3="Trawl",Indices!B14,Indices!C14) -> 9146 | C70: 1.2808 | E70: 894 | F70: 0% | G70: 894 | H70: 0% | I70: 0% | O70: 475 | P70: 894
A71: 2011 | B71: =IF($B$3="Trawl",Indices!B15,Indices!C15) -> 8669 | C71: 1.2140 | E71: 862 | F71: -4% | G71: 862 | H71: -4% | I71: -4% | O71: 475 | P71: 894
A72: 2012 | B72: =IF($B$3="Trawl",Indices!B16,Indices!C16) -> 8403 | C72: 1.1767 | E72: 835 | F72: -3% | G72: 835 | H72: -3% | I72: -3% | O72: 475 | P72: 894
A73: 2013 | B73: =IF($B$3="Trawl",Indices!B17,Indices!C17) -> 7989 | C73: 1.1188 | E73: 794 | F73: -5% | G73: 794 | H73: -5% | I73: -5% | O73: 475 | P73: 894
A74: 2014 | B74: =IF($B$3="Trawl",Indices!B18,Indices!C18) -> 7995 | C74: 1.1196 | E74: 795 | F74: 0% | G74: 795 | H74: 0% | I74: 0% | O74: 475 | P74: 894
A75: 2015 | B75: =IF($B$3="Trawl",Indices!B19,Indices!C19) -> 8130 | C75: 1.1385 | E75: 808 | F75: 2% | G75: 808 | H75: 2% | I75: 2% | O75: 475 | P75: 894
A76: 2016 | B76: =IF($B$3="Trawl",Indices!B20,Indices!C20) -> 7826 | C76: 1.0959 | E76: 778 | F76: -4% | G76: 778 | H76: -4% | I76: -4% | O76: 475 | P76: 894
A77: 2017 | B77: =IF($B$3="Trawl",Indices!B21,Indices!C21) -> 7250 | C77: 1.0153 | E77: 721 | F77: -7% | G77: 721 | H77: -7% | I77: -7% | O77: 475 | P77: 894
A78: 2018 | B78: =IF($B$3="Trawl",Indices!B22,Indices!C22) -> 7141 | C78: 1.0000 | E78: 710 | F78: -2% | G78: 710 | H78: -2% | I78: -2% | O78: 475 | P78: 894
A80: what-if | B80: 9000 | C80: 1.2603 | E80: =MIN($G$4,MAX($H$4,(1-(1-C80)*1)*$F$4)) -> 894 | F80: =(E80-E77)/E77 -> 24% | G80: =IF(ABS(H80)>$H$8,G77*(1+SIGN(H80)*$H$8),E80) -> 829 | H80: =(E80-G77)/G77 -> 24% | I80: =(G80-G77)/G77 -> 15%

Sheet Alt2-4
A1: PSC Limit | B1: Primary Index | C1: Second Index | F1: Element 1 | G1: Element 2 | H1: Element 3
A2: Trawl | B2: Setline | C2: NA | E2: Gear | F2: Starting point | G2: Ceiling | H2: Floor
A3: Non-trawl | B3: Setline | C3: NA | E3: Trawl | F3: 1610 | G3: 2805 | H3: 798
E4: Non-trawl | F4: 408 | G4: 710 | H4: 202
E5: Total | F5: =SUM(F3:F4) -> 2018 | G5: =SUM(G3:G4) -> 3515 | H5: =SUM(H3:H4) -> 1000
A6: Element 4: Breakpoint
A7: Low Threshold | B7: 1 | D7: Element 5: slope multiplier | G7: Element 6 Constraint
A8: High Threshold | D8: Low Multiplier | E8: 1 | G8: Up | H8: 15%
D9: High Multiplier | E9: 0.5 | G9: Down | H9: 15%
A10: Standardized Year or Mean
B11: Primary | C11: Secondary
A12: Trawl | B12: 2018 | D12: =VLOOKUP(B12,A32:D52,2) -> 7141 | E12: =IF(C12="Mean",AVERAGE(D32:D52),VLOOKUP(C12,A32:D52,4)) -> 
A13: Non-trawl | B13: 2018 | D13: =VLOOKUP(B13,A58:D78,2) -> 7141 | E13: =IF(C13="Mean",AVERAGE(D58:D78),VLOOKUP(C13,A58:D78,4)) -> 
A30: TRAWL PSC LIMIT
A31: Year | B31: Primary index | C31: Standardized Primary | E31: PSC Limit without Element 6 | F31: % change without element 6 | G31: PSC Limit with Element 6 | H31: Potential Percent change | I31: Actual Percent Change | O31: Floor | P31: Ceiling
A32: 1998 | B32: =IF($B$2="Trawl",Indices!B2,Indices!C2) -> 18502 | C32: =B32/D$12 -> 2.5910 | E32: =MIN($G$3,MAX($H$3,(1-(1-C32)*IF(C32>$B$7,$E$9,$E$8))*$F$3)) -> 2,805 | G32: =E32 -> 2,805 | O32: =$H$3 -> 798 | P32: =$G$3 -> 2805
A33: 1999 | B33: =IF($B$2="Trawl",Indices!B3,Indices!C3) -> 16201 | C33: 2.2687 | E33: =MIN($G$3,MAX($H$3,(1-(1-C33)*IF(C33>$B$7,$E$9,$E$8))*$F$3)) -> 2,631 | F33: =(E33-E32)/E32 -> -6% | G33: =IF(H33>0,IF(ABS(H33)>$H$8,G32*(1+SIGN(H33)*$H$8),E33),IF(ABS(H33)>$H$9,G32*(1+SIGN(H33)*$H$9),E33)) -> 2,631 | H33: =(E33-G32)/G32 -> -6% | I33: =(G33-G32)/G32 -> -6% | O33: 798 | P33: 2805
A34: 2000 | B34: =IF($B$2="Trawl",Indices!B4,Indices!C4) -> 16203 | C34: 2.2690 | E34: 2,632 | F34: =(E34-E33)/E33 -> 0% | G34: 2,632 | H34: 0% | I34: =(G34-G33)/G33 -> 0% | O34: 798 | P34: 2805
A35: 2001 | B35: =IF($B$2="Trawl",Indices!B5,Indices!C5) -> 13780 | C35: 1.9297 | E35: 2,358 | F35: -10% | G35: 2,358 | H35: -10% | I35: =(G35-G34)/G34 -> -10% | O35: 798 | P35: 2805
A36: 2002 | B36: =IF($B$2="Trawl",Indices!B6,Indices!C6) -> 12104 | C36: 1.6950 | E36: 2,169 | F36: -8% | G36: 2,169 | H36: -8% | I36: -8% | O36: 798 | P36: 2805
A37: 2003 | B37: =IF($B$2="Trawl",Indices!B7,Indices!C7) -> 10866 | C37: 1.5216 | E37: 2,030 | F37: -6% | G37: 2,030 | H37: -6% | I37: -6% | O37: 798 | P37: 2805
A38: 2004 | B38: =IF($B$2="Trawl",Indices!B8,Indices!C8) -> 9987 | C38: 1.3985 | E38: 1,931 | F38: -5% | G38: 1,931 | H38: -5% | I38: -5% | O38: 798 | P38: 2805
A39: 2005 | B39: =IF($B$2="Trawl",Indices!B9,Indices!C9) -> 9550 | C39: 1.3373 | E39: 1,882 | F39: -3% | G39: 1,882 | H39: -3% | I39: -3% | O39: 798 | P39: 2805
A40: 2006 | B40: =IF($B$2="Trawl",Indices!B10,Indices!C10) -> 9802 | C40: 1.3726 | E40: 1,910 | F40: 2% | G40: 1,910 | H40: 2% | I40: 2% | O40: 798 | P40: 2805
A41: 2007 | B41: =IF($B$2="Trawl",Indices!B11,Indices!C11) -> 9673 | C41: 1.3546 | E41: 1,895 | F41: -1% | G41: 1,895 | H41: -1% | I41: -1% | O41: 798 | P41: 2805
A42: 2008 | B42: =IF($B$2="Trawl",Indices!B12,Indices!C12) -> 10264 | C42: 1.4373 | E42: 1,962 | F42: 4% | G42: 1,962 | H42: 4% | I42: 4% | O42: 798 | P42: 2805
A43: 2009 | B43: =IF($B$2="Trawl",Indices!B13,Indices!C13) -> 9834 | C43: 1.3771 | E43: 1,914 | F43: -2% | G43: 1,914 | H43: -2% | I43: -2% | O43: 798 | P43: 2805
A44: 2010 | B44: =IF($B$2="Trawl",Indices!B14,Indices!C14) -> 9146 | C44: 1.2808 | E44: 1,836 | F44: -4% | G44: 1,836 | H44: -4% | I44: -4% | O44: 798 | P44: 2805
A45: 2011 | B45: =IF($B$2="Trawl",Indices!B15,Indices!C15) -> 8669 | C45: 1.2140 | E45: 1,782 | F45: -3% | G45: 1,782 | H45: -3% | I45: -3% | O45: 798 | P45: 2805
A46: 2012 | B46: =IF($B$2="Trawl",Indices!B16,Indices!C16) -> 8403 | C46: 1.1767 | E46: 1,752 | F46: -2% | G46: 1,752 | H46: -2% | I46: -2% | O46: 798 | P46: 2805
A47: 2013 | B47: =IF($B$2="Trawl",Indices!B17,Indices!C17) -> 7989 | C47: 1.1188 | E47: 1,706 | F47: -3% | G47: 1,706 | H47: -3% | I47: -3% | O47: 798 | P47: 2805
A48: 2014 | B48: =IF($B$2="Trawl",Indices!B18,Indices!C18) -> 7995 | C48: 1.1196 | E48: 1,706 | F48: 0% | G48: 1,706 | H48: 0% | I48: 0% | O48: 798 | P48: 2805
A49: 2015 | B49: =IF($B$2="Trawl",Indices!B19,Indices!C19) -> 8130 | C49: 1.1385 | E49: 1,721 | F49: 1% | G49: 1,721 | H49: 1% | I49: 1% | O49: 798 | P49: 2805
A50: 2016 | B50: =IF($B$2="Trawl",Indices!B20,Indices!C20) -> 7826 | C50: 1.0959 | E50: 1,687 | F50: -2% | G50: 1,687 | H50: -2% | I50: -2% | O50: 798 | P50: 2805
A51: 2017 | B51: =IF($B$2="Trawl",Indices!B21,Indices!C21) -> 7250 | C51: 1.0153 | E51: 1,622 | F51: -4% | G51: 1,622 | H51: -4% | I51: -4% | O51: 798 | P51: 2805
A52: 2018 | B52: =IF($B$2="Trawl",Indices!B22,Indices!C22) -> 7141 | C52: 1.0000 | E52: 1,610 | F52: -1% | G52: 1,610 | H52: -1% | I52: -1%
A54: what-if | B54: 9000 | C54: =B54/$D$12 -> 1.260327685 | E54: =MIN($G$3,MAX($H$3,(1-(1-C54)*IF(B44>1,$E$9,$E$8))*$F$3)) -> 1,820 | F54: =(E54-E51)/E51 -> 12% | G54: =IF(ABS(H54)>$H$8,G51*(1+SIGN(H54)*$H$8),E54) -> 1,820 | H54: =(E54-G51)/G51 -> 12% | I54: =(G54-G51)/G51 -> 12%
A56: NON-TRAWL PSC LIMIT
A57: Year | B57: Primary index | C57: Standardized Primary | E57: PSC Limit without Element 6 | F57: % change without element 6 | G57: PSC Limit with Element 6 | H57: Potential Percent change | I57: Actual Percent Change | O57: Floor | P57: Ceiling
A58: 1998 | B58: =IF($B$3="Trawl",Indices!B2,Indices!C2) -> 18502 | C58: =B58/D$13 -> 2.5910 | E58: =MIN($G$4,MAX($H$4,(1-(1-C58)*IF(C58>$B$7,$E$9,$E$8))*$F$4)) -> 710 | G58: =E58 -> 710 | O58: =$H$4 -> 202 | P58: =$G$4 -> 710
A59: 1999 | B59: =IF($B$3="Trawl",Indices!B3,Indices!C3) -> 16201 | C59: =B59/D$13 -> 2.2687 | E59: =MIN($G$4,MAX($H$4,(1-(1-C59)*1)*$F$4)) -> 710 | F59: =(E59-E58)/E58 -> 0% | G59: =IF(H59>0,IF(ABS(H59)>$H$8,G58*(1+SIGN(H59)*$H$8),E59),IF(ABS(H59)>$H$9,G58*(1+SIGN(H59)*$H$9),E59)) -> 710 | H59: =(E59-G58)/G58 -> 0% | I59: =(G59-G58)/G58 -> 0% | O59: =$H$4 -> 202 | P59: =$G$4 -> 710
A60: 2000 | B60: =IF($B$3="Trawl",Indices!B4,Indices!C4) -> 16203 | C60: 2.2690 | E60: 710 | F60: =(E60-E59)/E59 -> 0% | G60: 710 | H60: 0% | I60: =(G60-G59)/G59 -> 0% | O60: 202 | P60: 710
A61: 2001 | B61: =IF($B$3="Trawl",Indices!B5,Indices!C5) -> 13780 | C61: 1.9297 | E61: 710 | F61: 0% | G61: 710 | H61: 0% | I61: =(G61-G60)/G60 -> 0% | O61: 202 | P61: 710
A62: 2002 | B62: =IF($B$3="Trawl",Indices!B6,Indices!C6) -> 12104 | C62: 1.6950 | E62: 692 | F62: -3% | G62: 692 | H62: -3% | I62: -3% | O62: 202 | P62: 710
A63: 2003 | B63: =IF($B$3="Trawl",Indices!B7,Indices!C7) -> 10866 | C63: 1.5216 | E63: 621 | F63: -10% | G63: 621 | H63: -10% | I63: -10% | O63: 202 | P63: 710
A64: 2004 | B64: =IF($B$3="Trawl",Indices!B8,Indices!C8) -> 9987 | C64: 1.3985 | E64: 571 | F64: -8% | G64: 571 | H64: -8% | I64: -8% | O64: 202 | P64: 710
A65: 2005 | B65: =IF($B$3="Trawl",Indices!B9,Indices!C9) -> 9550 | C65: 1.3373 | E65: 546 | F65: -4% | G65: 546 | H65: -4% | I65: -4% | O65: 202 | P65: 710
A66: 2006 | B66: =IF($B$3="Trawl",Indices!B10,Indices!C10) -> 9802 | C66: 1.3726 | E66: 560 | F66: 3% | G66: 560 | H66: 3% | I66: 3% | O66: 202 | P66: 710
A67: 2007 | B67: =IF($B$3="Trawl",Indices!B11,Indices!C11) -> 9673 | C67: 1.3546 | E67: 553 | F67: -1% | G67: 553 | H67: -1% | I67: -1% | O67: 202 | P67: 710
A68: 2008 | B68: =IF($B$3="Trawl",Indices!B12,Indices!C12) -> 10264 | C68: 1.4373 | E68: 586 | F68: 6% | G68: 586 | H68: 6% | I68: 6% | O68: 202 | P68: 710
A69: 2009 | B69: =IF($B$3="Trawl",Indices!B13,Indices!C13) -> 9834 | C69: 1.3771 | E69: 562 | F69: -4% | G69: 562 | H69: -4% | I69: -4% | O69: 202 | P69: 710
A70: 2010 | B70: =IF($B$3="Trawl",Indices!B14,Indices!C14) -> 9146 | C70: 1.2808 | E70: 523 | F70: -7% | G70: 523 | H70: -7% | I70: -7% | O70: 202 | P70: 710
A71: 2011 | B71: =IF($B$3="Trawl",Indices!B15,Indices!C15) -> 8669 | C71: 1.2140 | E71: 495 | F71: -5% | G71: 495 | H71: -5% | I71: -5% | O71: 202 | P71: 710
A72: 2012 | B72: =IF($B$3="Trawl",Indices!B16,Indices!C16) -> 8403 | C72: 1.1767 | E72: 480 | F72: -3% | G72: 480 | H72: -3% | I72: -3% | O72: 202 | P72: 710
A73: 2013 | B73: =IF($B$3="Trawl",Indices!B17,Indices!C17) -> 7989 | C73: 1.1188 | E73: 456 | F73: -5% | G73: 456 | H73: -5% | I73: -5% | O73: 202 | P73: 710
A74: 2014 | B74: =IF($B$3="Trawl",Indices!B18,Indices!C18) -> 7995 | C74: 1.1196 | E74: 457 | F74: 0% | G74: 457 | H74: 0% | I74: 0% | O74: 202 | P74: 710
A75: 2015 | B75: =IF($B$3="Trawl",Indices!B19,Indices!C19) -> 8130 | C75: 1.1385 | E75: 465 | F75: 2% | G75: 465 | H75: 2% | I75: 2% | O75: 202 | P75: 710
A76: 2016 | B76: =IF($B$3="Trawl",Indices!B20,Indices!C20) -> 7826 | C76: 1.0959 | E76: 447 | F76: -4% | G76: 447 | H76: -4% | I76: -4% | O76: 202 | P76: 710
A77: 2017 | B77: =IF($B$3="Trawl",Indices!B21,Indices!C21) -> 7250 | C77: 1.0153 | E77: 414 | F77: -7% | G77: 414 | H77: -7% | I77: -7% | O77: 202 | P77: 710
A78: 2018 | B78: =IF($B$3="Trawl",Indices!B22,Indices!C22) -> 7141 | C78: 1.0000 | E78: 408 | F78: -2% | G78: 408 | H78: -2% | I78: -2% | O78: 202 | P78: 710
A80: what-if | B80: 9000 | C80: 1.2603 | E80: =MIN($G$4,MAX($H$4,(1-(1-C80)*1)*$F$4)) -> 514 | F80: =(E80-E77)/E77 -> 24% | G80: =IF(ABS(H80)>$H$8,G77*(1+SIGN(H80)*$H$8),E80) -> 476 | H80: =(E80-G77)/G77 -> 24% | I80: =(G80-G77)/G77 -> 15%

Sheet Alt3-1
A1: PSC Limit | B1: Primary Index | C1: Second Index | F1: Element 1 | G1: Element 2 | H1: Element 3
A2: Trawl | B2: Trawl | C2: =IF(B2="Trawl","Setline","Trawl") -> Setline | E2: Gear | F2: Starting point | G2: Ceiling | H2: Floor
A3: Non-trawl | B3: Setline | C3: =IF(B3="Trawl","Setline","Trawl") -> Trawl | E3: Trawl | F3: 2805 | G3: 3532 | H3: 1403
E4: Non-trawl | F4: 710 | G4: 894 | H4: 355
E5: Total | F5: =SUM(F3:F4) -> 3515 | G5: =SUM(G3:G4) -> 4426 | H5: =SUM(H3:H4) -> 1758
A6: Element 4: Breakpoint
A7: Low Threshold | B7: 0.75 | D7: Element 5: slope multiplier | G7: Element 6 Constraint
A8: High Threshold | B8: 1.25 | D8: Low Multiplier on slope | E8: 1 | G8: Up | H8: 15%
D9: High Multiplier on slope | E9: 1 | G9: Down | H9: 15%
A10: Standardized Year or Mean
B11: Primary | C11: Secondary
A12: Trawl | B12: 2018 | C12: 2018 | D12: =VLOOKUP(B12,A32:D52,2) -> 125702 | E12: =IF(C12="Mean",AVERAGE(D32:D52),VLOOKUP(C12,A32:D52,4)) -> 7141
A13: Non-trawl | B13: 2018 | C13: 2018 | D13: =VLOOKUP(B13,A58:D78,2) -> 7141 | E13: =IF(C13="Mean",AVERAGE(D58:D78),VLOOKUP(C13,A58:D78,4)) -> 125702
A30: TRAWL PSC LIMIT
A31: Year | B31: Primary index | C31: Standardized Primary | D31: Secondary index | E31: Standardized Secondary | G31: PSC Limit without Element 6 | H31: % change without element 6 | I31: PSC Limit with Element 6 | J31: Potential Percent change | K31: Actual Percent Change | N31: slope modifier for Alt 3 | O31: Floor | P31: Ceiling
A32: 1998 | B32: =IF($B$2="Trawl",Indices!B2,Indices!C2) -> 161256 | C32: =B32/D$12 -> 1.2828 | D32: =IF($C$2="Trawl",Indices!B2,Indices!C2) -> 18502 | E32: =D32/E$12 -> 2.5910 | G32: =MIN($G$3,MAX($H$3,$F$3*(1-1*(1-(C32+N32))))) -> 3,532 | I32: =G32 -> 3,532 | N32: =IF(E32<$B$7,$E$8*(E32-$B$7),IF(E32>$B$8,$E$9*(E32-$B$8),0)) -> 1.340953648 | O32: =$H$3 -> 1403 | P32: =$G$3 -> 3532
A33: 1999 | B33: =IF($B$2="Trawl",Indices!B3,Indices!C3) -> 129116 | C33: 1.0272 | D33: =IF($C$2="Trawl",Indices!B3,Indices!C3) -> 16201 | E33: =D33/E$12 -> 2.2687 | G33: 3,532 | H33: =(G33-G32)/G32 -> 0% | I33: =IF(J33>0,IF(ABS(J33)>$H$8,I32*(1+SIGN(J33)*$H$8),G33),IF(ABS(J33)>$H$9,I32*(1+SIGN(J33)*$H$9),G33)) -> 3,532 | J33: =(G33-I32)/I32 -> 0% | K33: =(I33-I32)/I32 -> 0% | N33: 1.01872987 | O33: 1403 | P33: 3532
A34: 2000 | B34: =IF($B$2="Trawl",Indices!B4,Indices!C4) -> 118677 | C34: 0.9441 | D34: =IF($C$2="Trawl",Indices!B4,Indices!C4) -> 16203 | E34: 2.2690 | G34: 3,532 | H34: =(G34-G33)/G33 -> 0% | I34: 3,532 | J34: 0% | K34: =(I34-I33)/I33 -> 0% | N34: 1.019009943 | O34: 1403 | P34: 3532
A35: 2001 | B35: =IF($B$2="Trawl",Indices!B5,Indices!C5) -> 141219 | C35: 1.1234 | D35: =IF($C$2="Trawl",Indices!B5,Indices!C5) -> 13780 | E35: 1.9297 | G35: 3,532 | H35: 0% | I35: 3,532 | J35: 0% | K35: =(I35-I34)/I34 -> 0% | N35: 0.6797017224 | O35: 1403 | P35: 3532
A36: 2002 | B36: =IF($B$2="Trawl",Indices!B6,Indices!C6) -> 101706 | C36: 0.8091 | D36: =IF($C$2="Trawl",Indices!B6,Indices!C6) -> 12104 | E36: 1.6950 | G36: 3,518 | H36: -0% | I36: 3,518 | J36: -0% | K36: -0% | N36: 0.4450007002 | O36: 1403 | P36: 3532
A37: 2003 | B37: =IF($B$2="Trawl",Indices!B7,Indices!C7) -> 132151 | C37: 1.0513 | D37: =IF($C$2="Trawl",Indices!B7,Indices!C7) -> 10866 | E37: 1.5216 | G37: 3,532 | H37: 0% | I37: 3,532 | J37: 0% | K37: 0% | N37: 0.2716356253 | O37: 1403 | P37: 3532
A38: 2004 | B38: =IF($B$2="Trawl",Indices!B8,Indices!C8) -> 130075 | C38: 1.0348 | D38: =IF($C$2="Trawl",Indices!B8,Indices!C8) -> 9987 | E38: 1.3985 | G38: 3,319 | H38: -6% | I38: 3,319 | J38: -6% | K38: -6% | N38: 0.1485436213 | O38: 1403 | P38: 3532
A39: 2005 | B39: =IF($B$2="Trawl",Indices!B9,Indices!C9) -> 132518 | C39: 1.0542 | D39: =IF($C$2="Trawl",Indices!B9,Indices!C9) -> 9550 | E39: 1.3373 | G39: 3,202 | H39: -4% | I39: 3,202 | J39: -4% | K39: -4% | N39: 0.0873477104 | O39: 1403 | P39: 3532
A40: 2006 | B40: =IF($B$2="Trawl",Indices!B10,Indices!C10) -> 155964 | C40: 1.2407 | D40: =IF($C$2="Trawl",Indices!B10,Indices!C10) -> 9802 | E40: 1.3726 | G40: 3,532 | H40: 10% | I40: 3,532 | J40: 10% | K40: 10% | N40: 0.1226368856 | O40: 1403 | P40: 3532
A41: 2007 | B41: =IF($B$2="Trawl",Indices!B11,Indices!C11) -> 143903 | C41: 1.1448 | D41: =IF($C$2="Trawl",Indices!B11,Indices!C11) -> 9673 | E41: 1.3546 | G41: 3,504 | H41: -1% | I41: 3,504 | J41: -1% | K41: -1% | N41: 0.1045721888 | O41: 1403 | P41: 3532
A42: 2008 | B42: =IF($B$2="Trawl",Indices!B12,Indices!C12) -> 140247 | C42: 1.1157 | D42: =IF($C$2="Trawl",Indices!B12,Indices!C12) -> 10264 | E42: 1.4373 | G42: 3,532 | H42: 1% | I42: 3,532 | J42: 1% | K42: 1% | N42: 0.1873337068 | O42: 1403 | P42: 3532
A43: 2009 | B43: =IF($B$2="Trawl",Indices!B13,Indices!C13) -> 168102 | C43: 1.3373 | D43: =IF($C$2="Trawl",Indices!B13,Indices!C13) -> 9834 | E43: 1.3771 | G43: 3,532 | H43: 0% | I43: 3,532 | J43: 0% | K43: 0% | N43: 0.1271180507 | O43: 1403 | P43: 3532
A44: 2010 | B44: =IF($B$2="Trawl",Indices!B14,Indices!C14) -> 195535 | C44: 1.5555 | D44: =IF($C$2="Trawl",Indices!B14,Indices!C14) -> 9146 | E44: 1.2808 | G44: 3,532 | H44: 0% | I44: 3,532 | J44: 0% | K44: 0% | N44: 0.03077300098 | O44: 1403 | P44: 3532
A45: 2011 | B45: =IF($B$2="Trawl",Indices!B15,Indices!C15) -> 186666 | C45: 1.4850 | D45: =IF($C$2="Trawl",Indices!B15,Indices!C15) -> 8669 | E45: 1.2140 | G45: 3,532 | H45: 0% | I45: 3,532 | J45: 0% | K45: 0% | N45: 0 | O45: 1403 | P45: 3532
A46: 2012 | B46: =IF($B$2="Trawl",Indices!B16,Indices!C16) -> 189000 | C46: 1.5036 | D46: =IF($C$2="Trawl",Indices!B16,Indices!C16) -> 8403 | E46: 1.1767 | G46: 3,532 | H46: 0% | I46: 3,532 | J46: 0% | K46: 0% | N46: 0 | O46: 1403 | P46: 3532
A47: 2013 | B47: =IF($B$2="Trawl",Indices!B17,Indices!C17) -> 183989 | C47: 1.4637 | D47: =IF($C$2="Trawl",Indices!B17,Indices!C17) -> 7989 | E47: 1.1188 | G47: 3,532 | H47: 0% | I47: 3,532 | J47: 0% | K47: 0% | N47: 0 | O47: 1403 | P47: 3532
A48: 2014 | B48: =IF($B$2="Trawl",Indices!B18,Indices!C18) -> 171427 | C48: 1.3638 | D48: =IF($C$2="Trawl",Indices!B18,Indices!C18) -> 7995 | E48: 1.1196 | G48: 3,532 | H48: 0% | I48: 3,532 | J48: 0% | K48: 0% | N48: 0 | O48: 1403 | P48: 3532
A49: 2015 | B49: =IF($B$2="Trawl",Indices!B19,Indices!C19) -> 172237 | C49: 1.3702 | D49: =IF($C$2="Trawl",Indices!B19,Indices!C19) -> 8130 | E49: 1.1385 | G49: 3,532 | H49: 0% | I49: 3,532 | J49: 0% | K49: 0% | N49: 0 | O49: 1403 | P49: 3532
A50: 2016 | B50: =IF($B$2="Trawl",Indices!B20,Indices!C20) -> 153704 | C50: 1.2228 | D50: =IF($C$2="Trawl",Indices!B20,Indices!C20) -> 7826 | E50: 1.0959 | G50: 3,430 | H50: -3% | I50: 3,430 | J50: -3% | K50: -3% | N50: 0 | O50: 1403 | P50: 3532
A51: 2017 | B51: =IF($B$2="Trawl",Indices!B21,Indices!C21) -> 126684 | C51: 1.0078 | D51: =IF($C$2="Trawl",Indices!B21,Indices!C21) -> 7250 | E51: 1.0153 | G51: 2,827 | H51: -18% | I51: 2,915 | J51: -18% | K51: -15% | N51: 0 | O51: 1403 | P51: 3532
A52: 2018 | B52: =IF($B$2="Trawl",Indices!B22,Indices!C22) -> 125702 | C52: 1.0000 | D52: =IF($C$2="Trawl",Indices!B22,Indices!C22) -> 7141 | E52: 1.0000 | G52: 2,805 | H52: =(G52-G51)/G51 -> -1% | I52: 2,805 | J52: -4% | K52: =(I52-I51)/I51 -> -4%
A54: what-if | B54: 100000 | C54: =B54/$D$12 -> 0.7955322907 | D54: 9000 | E54: =D54/$E$12 -> 1.260327685 | G54: =MIN($G$3,MAX($H$3,$F$3*(1-1*(1-(C54+N54))))) -> 2,260 | H54: =(G54-G51)/G51 -> -20% | I54: =IF(ABS(J54)>$H$8,I51*(1+SIGN(J54)*$H$8),G54) -> 2,478 | J54: =(G54-I51)/I51 -> -22% | K54: =(I54-I51)/I51 -> -15% | N54: =IF(E54<$B$7,$E$8*(E54-$B$7),IF(E54>$B$8,$E$9*(E54-$B$8),0)) -> 0.0103276852
A56: NON-TRAWL PSC LIMIT
A57: Year | B57: Primary index | C57: Standardized Primary | D57: Secondary index | E57: Standardized Secondary | G57: PSC Limit without Element 6 | H57: % change without element 6 | I57: PSC Limit with Element 6 | J57: Potential Percent change | K57: Actual Percent Change | N57: slope modifier for Alt 3
A58: 1998 | B58: =IF($B$3="Trawl",Indices!B2,Indices!C2) -> 18502 | C58: =B58/D$13 -> 2.5910 | D58: =IF($C$3="Trawl",Indices!B2,Indices!C2) -> 161256 | E58: =D58/E$13 -> 1.2828 | G58: =MIN($G$4,MAX($H$4,$F$4*(1-1*(1-(C58+N58))))) -> 894 | I58: =G58 -> 894 | N58: =IF(E58<$B$7,$E$8*(E58-$B$7),IF(E58>$B$8,$E$9*(E58-$B$8),0)) -> 0.03284355062
A59: 1999 | B59: =IF($B$3="Trawl",Indices!B3,Indices!C3) -> 16201 | C59: =B59/D$13 -> 2.2687 | D59: =IF($C$3="Trawl",Indices!B3,Indices!C3) -> 129116 | E59: =D59/E$13 -> 1.0272 | G59: =MIN($G$4,MAX($H$4,$F$4*(1-1*(1-(C59+N59))))) -> 894 | H59: =(G59-G58)/G58 -> 0% | I59: =IF(J59>0,IF(ABS(J59)>$H$8,I58*(1+SIGN(J59)*$H$8),G59),IF(ABS(J59)>$H$9,I58*(1+SIGN(J59)*$H$9),G59)) -> 894 | J59: =(G59-I58)/I58 -> 0% | K59: =(I59-I58)/I58 -> 0% | N59: 0
A60: 2000 | B60: =IF($B$3="Trawl",Indices!B4,Indices!C4) -> 16203 | C60: 2.2690 | D60: =IF($C$3="Trawl",Indices!B4,Indices!C4) -> 118677 | E60: 0.9441 | G60: 894 | H60: =(G60-G59)/G59 -> 0% | I60: 894 | J60: 0% | K60: =(I60-I59)/I59 -> 0% | N60: 0
A61: 2001 | B61: =IF($B$3="Trawl",Indices!B5,Indices!C5) -> 13780 | C61: 1.9297 | D61: =IF($C$3="Trawl",Indices!B5,Indices!C5) -> 141219 | E61: 1.1234 | G61: 894 | H61: 0% | I61: 894 | J61: 0% | K61: =(I61-I60)/I60 -> 0% | N61: 0
A62: 2002 | B62: =IF($B$3="Trawl",Indices!B6,Indices!C6) -> 12104 | C62: 1.6950 | D62: =IF($C$3="Trawl",Indices!B6,Indices!C6) -> 101706 | E62: 0.8091 | G62: 894 | H62: 0% | I62: 894 | J62: 0% | K62: 0% | N62: 0
A63: 2003 | B63: =IF($B$3="Trawl",Indices!B7,Indices!C7) -> 10866 | C63: 1.5216 | D63: =IF($C$3="Trawl",Indices!B7,Indices!C7) -> 132151 | E63: 1.0513 | G63: 894 | H63: 0% | I63: 894 | J63: 0% | K63: 0% | N63: 0
A64: 2004 | B64: =IF($B$3="Trawl",Indices!B8,Indices!C8) -> 9987 | C64: 1.3985 | D64: =IF($C$3="Trawl",Indices!B8,Indices!C8) -> 130075 | E64: 1.0348 | G64: 894 | H64: 0% | I64: 894 | J64: 0% | K64: 0% | N64: 0
A65: 2005 | B65: =IF($B$3="Trawl",Indices!B9,Indices!C9) -> 9550 | C65: 1.3373 | D65: =IF($C$3="Trawl",Indices!B9,Indices!C9) -> 132518 | E65: 1.0542 | G65: 894 | H65: 0% | I65: 894 | J65: 0% | K65: 0% | N65: 0
A66: 2006 | B66: =IF($B$3="Trawl",Indices!B10,Indices!C10) -> 9802 | C66: 1.3726 | D66: =IF($C$3="Trawl",Indices!B10,Indices!C10) -> 155964 | E66: 1.2407 | G66: 894 | H66: 0% | I66: 894 | J66: 0% | K66: 0% | N66: 0
A67: 2007 | B67: =IF($B$3="Trawl",Indices!B11,Indices!C11) -> 9673 | C67: 1.3546 | D67: =IF($C$3="Trawl",Indices!B11,Indices!C11) -> 143903 | E67: 1.1448 | G67: 894 | H67: 0% | I67: 894 | J67: 0% | K67: 0% | N67: 0
A68: 2008 | B68: =IF($B$3="Trawl",Indices!B12,Indices!C12) -> 10264 | C68: 1.4373 | D68: =IF($C$3="Trawl",Indices!B12,Indices!C12) -> 140247 | E68: 1.1157 | G68: 894 | H68: 0% | I68: 894 | J68: 0% | K68: 0% | N68: 0
A69: 2009 | B69: =IF($B$3="Trawl",Indices!B13,Indices!C13) -> 9834 | C69: 1.3771 | D69: =IF($C$3="Trawl",Indices!B13,Indices!C13) -> 168102 | E69: 1.3373 | G69: 894 | H69: 0% | I69: 894 | J69: 0% | K69: 0% | N69: 0.08730569124
A70: 2010 | B70: =IF($B$3="Trawl",Indices!B14,Indices!C14) -> 9146 | C70: 1.2808 | D70: =IF($C$3="Trawl",Indices!B14,Indices!C14) -> 195535 | E70: 1.5555 | G70: 894 | H70: 0% | I70: 894 | J70: 0% | K70: 0% | N70: 0.3055440645
A71: 2011 | B71: =IF($B$3="Trawl",Indices!B15,Indices!C15) -> 8669 | C71: 1.2140 | D71: =IF($C$3="Trawl",Indices!B15,Indices!C15) -> 186666 | E71: 1.4850 | G71: 894 | H71: 0% | I71: 894 | J71: 0% | K71: 0% | N71: 0.2349883057
A72: 2012 | B72: =IF($B$3="Trawl",Indices!B16,Indices!C16) -> 8403 | C72: 1.1767 | D72: =IF($C$3="Trawl",Indices!B16,Indices!C16) -> 189000 | E72: 1.5036 | G72: 894 | H72: 0% | I72: 894 | J72: 0% | K72: 0% | N72: 0.2535560293
A73: 2013 | B73: =IF($B$3="Trawl",Indices!B17,Indices!C17) -> 7989 | C73: 1.1188 | D73: =IF($C$3="Trawl",Indices!B17,Indices!C17) -> 183989 | E73: 1.4637 | G73: 894 | H73: 0% | I73: 894 | J73: 0% | K73: 0% | N73: 0.2136919063
A74: 2014 | B74: =IF($B$3="Trawl",Indices!B18,Indices!C18) -> 7995 | C74: 1.1196 | D74: =IF($C$3="Trawl",Indices!B18,Indices!C18) -> 171427 | E74: 1.3638 | G74: 876 | H74: -2% | I74: 876 | J74: -2% | K74: -2% | N74: 0.1137571399
A75: 2015 | B75: =IF($B$3="Trawl",Indices!B19,Indices!C19) -> 8130 | C75: 1.1385 | D75: =IF($C$3="Trawl",Indices!B19,Indices!C19) -> 172237 | E75: 1.3702 | G75: 894 | H75: 2% | I75: 894 | J75: 2% | K75: 2% | N75: 0.1202009515
A76: 2016 | B76: =IF($B$3="Trawl",Indices!B20,Indices!C20) -> 7826 | C76: 1.0959 | D76: =IF($C$3="Trawl",Indices!B20,Indices!C20) -> 153704 | E76: 1.2228 | G76: 778 | H76: -13% | I76: 778 | J76: -13% | K76: -13% | N76: 0
A77: 2017 | B77: =IF($B$3="Trawl",Indices!B21,Indices!C21) -> 7250 | C77: 1.0153 | D77: =IF($C$3="Trawl",Indices!B21,Indices!C21) -> 126684 | E77: 1.0078 | G77: 721 | H77: -7% | I77: 721 | J77: -7% | K77: -7% | N77: 0
A78: 2018 | B78: =IF($B$3="Trawl",Indices!B22,Indices!C22) -> 7141 | C78: 1.0000 | D78: =IF($C$3="Trawl",Indices!B22,Indices!C22) -> 125702 | E78: 1.0000 | G78: 710 | H78: -2% | I78: 710 | J78: -2% | K78: -2%
A80: what-if | B80: 9000 | C80: 1.2603 | D80: 10000 | E80: 0.0796 | G80: 419 | H80: =(G80-G77)/G77 -> -42% | I80: =IF(ABS(J80)>$H$8,I77*(1+SIGN(J80)*$H$8),G80) -> 613 | J80: =(G80-I77)/I77 -> -42% | K80: =(I80-I77)/I77 -> -15% | N80: =IF(E80<$B$7,$E$8*(E80-$B$7),IF(E80>$B$8,$E$9*(E80-$B$8),0)) -> -0.6704467709

Sheet Alt3-2a
A1: PSC Limit | B1: Primary Index | C1: Second Index | F1: Element 1 | G1: Element 2 | H1: Element 3
A2: Trawl | B2: Trawl | C2: =IF(B2="Trawl","Setline","Trawl") -> Setline | E2: Gear | F2: Starting point | G2: Ceiling | H2: Floor
A3: Non-trawl | B3: Setline | C3: =IF(B3="Trawl","Setline","Trawl") -> Trawl | E3: Trawl | F3: 2805 | G3: 3532 | H3: 1403
E4: Non-trawl | F4: 710 | G4: 894 | H4: 355
E5: Total | F5: =SUM(F3:F4) -> 3515 | G5: =SUM(G3:G4) -> 4426 | H5: =SUM(H3:H4) -> 1758
A6: Element 4: Breakpoint
A7: Low Threshold | B7: NA | D7: Element 5: slope multiplier | G7: Element 6 Constraint
A8: High Threshold | B8: NA | D8: Low Multiplier on slope | E8: NA | G8: Up | H8: 15%
D9: High Multiplier on slope | E9: NA | G9: Down | H9: 15%
A10: Standardized Year or Mean
B11: Primary | C11: Secondary
A12: Trawl | B12: Mean | C12: Mean | D12: =IF(B12="Mean",AVERAGE(B32:B52),VLOOKUP(B12,A32:D52,2)) -> 150470.381 | E12: =IF(C12="Mean",AVERAGE(D32:D52),VLOOKUP(C12,A32:D52,4)) -> 10443.57143
A13: Non-trawl | B13: Mean | C13: Mean | D13: =IF(B13="Mean",AVERAGE(B72:B92),VLOOKUP(B13,A72:D92,2)) -> 10443.57143 | E13: =IF(C13="Mean",AVERAGE(D72:D92),VLOOKUP(C13,A72:D92,4)) -> 150470.381
A30: TRAWL
A31: Year | B31: Primary index | C31: Standardized Primary | D31: Secondary index | E31: Standardized Secondary | G31: PSC Limit without Element 6 | H31: % change without element 6 | I31: PSC Limit with Element 6 | J31: Potential Percent change | K31: Actual Percent Change | N31: row | O31: column | P31: floor | Q31: ceiling
A32: 1998 | B32: =IF($B$2="Trawl",Indices!B2,Indices!C2) -> 161256 | C32: =B32/D$12 -> 1.0717 | D32: =IF($C$2="Trawl",Indices!B2,Indices!C2) -> 18502 | E32: =D32/E$12 -> 1.7716 | G32: =INDEX($C$58:$M$68,N32,O32) -> 3,241 | I32: =IF(H32>0,IF(ABS(H32)>$H$8,G31*(1+SIGN(H32)*$H$8),G32),IF(ABS(H32)>$H$9,G31*(1+SIGN(H32)*$H$9),G32)) -> 3,241 | N32: =MATCH(MIN($B$58,MAX($B$68,ROUND(C32,1))),$B$58:$B$68,0) -> 5 | O32: =MATCH(MIN($M$57,MAX($C$57,ROUND(E32,1))),$C$57:$M$57,0) -> 11 | P32: =$H$3 -> 1403 | Q32: =$G$3 -> 3532
A33: 1999 | B33: =IF($B$2="Trawl",Indices!B3,Indices!C3) -> 129116 | C33: 0.8581 | D33: =IF($C$2="Trawl",Indices!B3,Indices!C3) -> 16201 | E33: =D33/E$12 -> 1.5513 | G33: =INDEX($C$58:$M$68,N33,O33) -> 3,096 | H33: =(G33-G32)/G32 -> -4% | I33: 3,096 | J33: =(G33-I32)/I32 -> -4% | K33: =(I33-I32)/I32 -> -4% | N33: =MATCH(MIN($B$58,MAX($B$68,ROUND(C33,1))),$B$58:$B$68,0) -> 7 | O33: =MATCH(MIN($M$57,MAX($C$57,ROUND(E33,1))),$C$57:$M$57,0) -> 11 | P33: =$H$3 -> 1403 | Q33: =$G$3 -> 3532
A34: 2000 | B34: =IF($B$2="Trawl",Indices!B4,Indices!C4) -> 118677 | C34: 0.7887 | D34: =IF($C$2="Trawl",Indices!B4,Indices!C4) -> 16203 | E34: 1.5515 | G34: 3,023 | H34: =(G34-G33)/G33 -> -2% | I34: 3,023 | J34: =(G34-I33)/I33 -> -2% | K34: =(I34-I33)/I33 -> -2% | N34: 8 | O34: 11 | P34: 1403 | Q34: 3532
A35: 2001 | B35: =IF($B$2="Trawl",Indices!B5,Indices!C5) -> 141219 | C35: 0.9385 | D35: =IF($C$2="Trawl",Indices!B5,Indices!C5) -> 13780 | E35: 1.3195 | G35: 2,950 | H35: -2% | I35: 2,950 | J35: =(G35-I34)/I34 -> -2% | K35: =(I35-I34)/I34 -> -2% | N35: 7 | O35: 9 | P35: 1403 | Q35: 3532
A36: 2002 | B36: =IF($B$2="Trawl",Indices!B6,Indices!C6) -> 101706 | C36: 0.6759 | D36: =IF($C$2="Trawl",Indices!B6,Indices!C6) -> 12104 | E36: 1.1590 | G36: 2,665 | H36: -10% | I36: 2,665 | J36: -10% | K36: -10% | N36: 9 | O36: 8 | P36: 1403 | Q36: 3532
A37: 2003 | B37: =IF($B$2="Trawl",Indices!B7,Indices!C7) -> 132151 | C37: 0.8783 | D37: =IF($C$2="Trawl",Indices!B7,Indices!C7) -> 10866 | E37: 1.0404 | G37: 2,665 | H37: 0% | I37: 2,665 | J37: 0% | K37: 0% | N37: 7 | O37: 6 | P37: 1403 | Q37: 3532
A38: 2004 | B38: =IF($B$2="Trawl",Indices!B8,Indices!C8) -> 130075 | C38: 0.8645 | D38: =IF($C$2="Trawl",Indices!B8,Indices!C8) -> 9987 | E38: 0.9563 | G38: 2,665 | H38: 0% | I38: 2,665 | J38: 0% | K38: 0% | N38: 7 | O38: 6 | P38: 1403 | Q38: 3532
A39: 2005 | B39: =IF($B$2="Trawl",Indices!B9,Indices!C9) -> 132518 | C39: 0.8807 | D39: =IF($C$2="Trawl",Indices!B9,Indices!C9) -> 9550 | E39: 0.9144 | G39: 2,525 | H39: -5% | I39: 2,525 | J39: -5% | K39: -5% | N39: 7 | O39: 5 | P39: 1403 | Q39: 3532
A40: 2006 | B40: =IF($B$2="Trawl",Indices!B10,Indices!C10) -> 155964 | C40: 1.0365 | D40: =IF($C$2="Trawl",Indices!B10,Indices!C10) -> 9802 | E40: 0.9386 | G40: 2,665 | H40: 6% | I40: 2,665 | J40: 6% | K40: 6% | N40: 6 | O40: 5 | P40: 1403 | Q40: 3532
A41: 2007 | B41: =IF($B$2="Trawl",Indices!B11,Indices!C11) -> 143903 | C41: 0.9564 | D41: =IF($C$2="Trawl",Indices!B11,Indices!C11) -> 9673 | E41: 0.9262 | G41: 2,665 | H41: 0% | I41: 2,665 | J41: 0% | K41: 0% | N41: 6 | O41: 5 | P41: 1403 | Q41: 3532
A42: 2008 | B42: =IF($B$2="Trawl",Indices!B12,Indices!C12) -> 140247 | C42: 0.9321 | D42: =IF($C$2="Trawl",Indices!B12,Indices!C12) -> 10264 | E42: 0.9828 | G42: 2,665 | H42: 0% | I42: 2,665 | J42: 0% | K42: 0% | N42: 7 | O42: 6 | P42: 1403 | Q42: 3532
A43: 2009 | B43: =IF($B$2="Trawl",Indices!B13,Indices!C13) -> 168102 | C43: 1.1172 | D43: =IF($C$2="Trawl",Indices!B13,Indices!C13) -> 9834 | E43: 0.9416 | G43: 2,805 | H43: 5% | I43: 2,805 | J43: 5% | K43: 5% | N43: 5 | O43: 5 | P43: 1403 | Q43: 3532
A44: 2010 | B44: =IF($B$2="Trawl",Indices!B14,Indices!C14) -> 195535 | C44: 1.2995 | D44: =IF($C$2="Trawl",Indices!B14,Indices!C14) -> 9146 | E44: 0.8758 | G44: 2,950 | H44: 5% | I44: 2,950 | J44: 5% | K44: 5% | N44: 3 | O44: 5 | P44: 1403 | Q44: 3532
A45: 2011 | B45: =IF($B$2="Trawl",Indices!B15,Indices!C15) -> 186666 | C45: 1.2405 | D45: =IF($C$2="Trawl",Indices!B15,Indices!C15) -> 8669 | E45: 0.8301 | G45: 2,805 | H45: -5% | I45: 2,805 | J45: -5% | K45: -5% | N45: 4 | O45: 4 | P45: 1403 | Q45: 3532
A46: 2012 | B46: =IF($B$2="Trawl",Indices!B16,Indices!C16) -> 189000 | C46: 1.2561 | D46: =IF($C$2="Trawl",Indices!B16,Indices!C16) -> 8403 | E46: 0.8046 | G46: 2,878 | H46: 3% | I46: 2,878 | J46: 3% | K46: 3% | N46: 3 | O46: 4 | P46: 1403 | Q46: 3532
A47: 2013 | B47: =IF($B$2="Trawl",Indices!B17,Indices!C17) -> 183989 | C47: 1.2228 | D47: =IF($C$2="Trawl",Indices!B17,Indices!C17) -> 7989 | E47: 0.7650 | G47: 2,805 | H47: -3% | I47: 2,805 | J47: -3% | K47: -3% | N47: 4 | O47: 4 | P47: 1403 | Q47: 3532
A48: 2014 | B48: =IF($B$2="Trawl",Indices!B18,Indices!C18) -> 171427 | C48: 1.1393 | D48: =IF($C$2="Trawl",Indices!B18,Indices!C18) -> 7995 | E48: 0.7655 | G48: 2,665 | H48: -5% | I48: 2,665 | J48: -5% | K48: -5% | N48: 5 | O48: 4 | P48: 1403 | Q48: 3532
A49: 2015 | B49: =IF($B$2="Trawl",Indices!B19,Indices!C19) -> 172237 | C49: 1.1447 | D49: =IF($C$2="Trawl",Indices!B19,Indices!C19) -> 8130 | E49: 0.7785 | G49: 2,665 | H49: 0% | I49: 2,665 | J49: 0% | K49: 0% | N49: 5 | O49: 4 | P49: 1403 | Q49: 3532
A50: 2016 | B50: =IF($B$2="Trawl",Indices!B20,Indices!C20) -> 153704 | C50: 1.0215 | D50: =IF($C$2="Trawl",Indices!B20,Indices!C20) -> 7826 | E50: 0.7494 | G50: 2,384 | H50: -11% | I50: 2,384 | J50: -11% | K50: -11% | N50: 6 | O50: 3 | P50: 1403 | Q50: 3532
A51: 2017 | B51: =IF($B$2="Trawl",Indices!B21,Indices!C21) -> 126684 | C51: 0.8419 | D51: =IF($C$2="Trawl",Indices!B21,Indices!C21) -> 7250 | E51: 0.6942 | G51: 2,104 | H51: -12% | I51: 2,104 | J51: -12% | K51: -12% | N51: 8 | O51: 3 | P51: 1403 | Q51: 3532
A52: 2018 | B52: =IF($B$2="Trawl",Indices!B22,Indices!C22) -> 125702 | C52: 0.8354 | D52: =IF($C$2="Trawl",Indices!B22,Indices!C22) -> 7141 | E52: 0.6838 | G52: 2,104 | H52: 0% | I52: =IF(H52>0,IF(ABS(H52)>$H$8,G51*(1+SIGN(H52)*$H$8),G52),IF(ABS(H52)>$H$9,G51*(1+SIGN(H52)*$H$9),G52)) -> 2,104 | J52: =(G52-I51)/I51 -> 0% | K52: =(I52-I51)/I51 -> 0% | N52: =MATCH(MIN($B$58,MAX($B$68,ROUND(C52,1))),$B$58:$B$68,0) -> 8 | O52: =MATCH(MIN($M$57,MAX($C$57,ROUND(E52,1))),$C$57:$M$57,0) -> 3 | P52: 1403 | Q52: 3532
A54: what-if | B54: 100000 | C54: =B54/$D$12 -> 0.66458262 | D54: 9000 | E54: =D54/$E$12 -> 0.8617741605 | G54: 2,244 | H54: =(G54-G52)/G52 -> 7% | I54: =IF(H54>0,IF(ABS(H54)>$H$8,G52*(1+SIGN(H54)*$H$8),G54),IF(ABS(H54)>$H$9,G52*(1+SIGN(H54)*$H$9),G54)) -> 2,244 | J54: =(G54-I52)/I52 -> 7% | K54: =(I54-I52)/I52 -> 7% | N54: =MATCH(MIN($B$58,MAX($B$68,ROUND(C54,1))),$B$58:$B$68,0) -> 9 | O54: =MATCH(MIN($M$57,MAX($C$57,ROUND(E54,1))),$C$57:$M$57,0) -> 5
C56: Secondary Index Standardized to average
A57: Primary Index Standardzied to average | C57: 0.5 | D57: 0.6 | E57: 0.7 | F57: 0.8 | G57: 0.9 | H57: 1 | I57: 1.1 | J57: 1.2 | K57: 1.3 | L57: 1.4 | M57: 1.5 | O57: slopeHi | P57: slopeLow
B58: 1.5 | C58: =$F$3 -> 2,805 | D58: =C58+$O$58*(D$57-C$57) -> 2,878 | E58: =D58+$O$58*(E$57-D$57) -> 2,950 | F58: 3,023 | G58: 3,096 | H58: 3,169 | I58: 3,241 | J58: 3,314 | K58: 3,387 | L58: 3,459 | M58: =G3 -> 3,532 | O58: =(M58-C58)/(M57-C57) -> 727 | P58: =(M68-C68)/(M57-C57) -> 1402
B59: 1.4 | C59: =C58+$P$58*(B59-B58) -> 2,665 | D59: =$F$3 -> 2,805 | E59: 2,878 | F59: 2,950 | G59: 3,023 | H59: 3,096 | I59: 3,169 | J59: 3,241 | K59: 3,314 | L59: 3,387 | M59: =M58+$O$58*(B59-B58) -> 3,459
B60: 1.3 | C60: =C59+$P$58*(B60-B59) -> 2,525 | D60: =C60+$P$58*(D$57-C$57) -> 2,665 | E60: =$F$3 -> 2,805 | F60: 2,878 | G60: 2,950 | H60: 3,023 | I60: 3,096 | J60: 3,169 | K60: 3,241 | L60: 3,314 | M60: =M59+$O$58*(B60-B59) -> 3,387
B61: 1.2 | C61: 2,384 | D61: 2,525 | E61: 2,665 | F61: =$F$3 -> 2,805 | G61: 2,878 | H61: 2,950 | I61: 3,023 | J61: 3,096 | K61: 3,169 | L61: 3,241 | M61: 3,314
B62: 1.1 | C62: 2,244 | D62: 2,384 | E62: 2,525 | F62: 2,665 | G62: =$F$3 -> 2,805 | H62: 2,878 | I62: 2,950 | J62: 3,023 | K62: 3,096 | L62: 3,169 | M62: 3,241
B63: 1 | C63: 2,104 | D63: 2,244 | E63: 2,384 | F63: 2,525 | G63: 2,665 | H63: =F3 -> 2,805 | I63: 2,878 | J63: 2,950 | K63: 3,023 | L63: 3,096 | M63: 3,169
B64: 0.9 | C64: 1,964 | D64: 2,104 | E64: 2,244 | F64: 2,384 | G64: 2,525 | H64: 2,665 | I64: =$F$3 -> 2,805 | J64: 2,878 | K64: 2,950 | L64: 3,023 | M64: 3,096
B65: 0.8 | C65: 1,824 | D65: 1,964 | E65: 2,104 | F65: 2,244 | G65: 2,384 | H65: 2,525 | I65: 2,665 | J65: =$F$3 -> 2,805 | K65: 2,878 | L65: 2,950 | M65: 3,023
B66: 0.7 | C66: 1,683 | D66: 1,824 | E66: 1,964 | F66: 2,104 | G66: 2,244 | H66: 2,384 | I66: 2,525 | J66: 2,665 | K66: =$F$3 -> 2,805 | L66: 2,878 | M66: 2,950
B67: 0.6 | C67: 1,543 | D67: 1,683 | E67: 1,824 | F67: 1,964 | G67: 2,104 | H67: 2,244 | I67: 2,384 | J67: 2,525 | K67: 2,665 | L67: =$F$3 -> 2,805 | M67: 2,878
B68: 0.5 | C68: =H3 -> 1,403 | D68: 1,543 | E68: 1,683 | F68: 1,824 | G68: 1,964 | H68: 2,104 | I68: 2,244 | J68: 2,384 | K68: 2,525 | L68: =K68+$P$58*(L$57-K$57) -> 2,665 | M68: =$F$3 -> 2,805
A70: NON-TRAWL
A71: Year | B71: Primary index | C71: Standardized Primary | D71: Secondary index | E71: Standardized Secondary | G71: PSC Limit without Element 6 | H71: % change without element 6 | I71: PSC Limit with Element 6 | J71: Potential Percent change | K71: Actual Percent Change | N71: row | O71: column | P71: floor | Q71: ceiling
A72: 1998 | B72: =IF($B$3="Trawl",Indices!B2,Indices!C2) -> 18502 | C72: =B72/D$13 -> 1.7716 | D72: =IF($C$3="Trawl",Indices!B2,Indices!C2) -> 161256 | E72: =D72/E$13 -> 1.0717 | G72: =INDEX($C$98:$M$108,N72,O72) -> 820 | I72: =G72 -> 820 | N72: =MATCH(MIN($B$98,MAX($B$108,ROUND(C72,1))),$B$98:$B$108,0) -> 1 | O72: =MATCH(MIN($M$97,MAX($C$97,ROUND(E72,1))),$C$97:$M$97,0) -> 7 | P72: =$H$4 -> 355 | Q72: =$G$4 -> 894
A73: 1999 | B73: =IF($B$3="Trawl",Indices!B3,Indices!C3) -> 16201 | C73: =B73/D$13 -> 1.5513 | D73: =IF($C$3="Trawl",Indices!B3,Indices!C3) -> 129116 | E73: =D73/E$13 -> 0.8581 | G73: =INDEX($C$98:$M$108,N73,O73) -> 784 | H73: =(G73-G72)/G72 -> -4% | I73: =IF(H73>0,IF(ABS(H73)>$H$8,G72*(1+SIGN(H73)*$H$8),G73),IF(ABS(H73)>$H$9,G72*(1+SIGN(H73)*$H$9),G73)) -> 784 | J73: =(G73-I72)/I72 -> -4% | K73: =(I73-I72)/I72 -> -4% | N73: =MATCH(MIN($B$98,MAX($B$108,ROUND(C73,1))),$B$98:$B$108,0) -> 1 | O73: =MATCH(MIN($M$97,MAX($C$97,ROUND(E73,1))),$C$97:$M$97,0) -> 5 | P73: =$H$4 -> 355 | Q73: =$G$4 -> 894
A74: 2000 | B74: =IF($B$3="Trawl",Indices!B4,Indices!C4) -> 16203 | C74: 1.5515 | D74: =IF($C$3="Trawl",Indices!B4,Indices!C4) -> 118677 | E74: 0.7887 | G74: 765 | H74: =(G74-G73)/G73 -> -2% | I74: 765 | J74: =(G74-I73)/I73 -> -2% | K74: =(I74-I73)/I73 -> -2% | N74: 1 | O74: 4 | P74: 355 | Q74: 894
A75: 2001 | B75: =IF($B$3="Trawl",Indices!B5,Indices!C5) -> 13780 | C75: 1.3195 | D75: =IF($C$3="Trawl",Indices!B5,Indices!C5) -> 141219 | E75: 0.9385 | G75: 747 | H75: -2% | I75: 747 | J75: =(G75-I74)/I74 -> -2% | K75: =(I75-I74)/I74 -> -2% | N75: 3 | O75: 5 | P75: 355 | Q75: 894
A76: 2002 | B76: =IF($B$3="Trawl",Indices!B6,Indices!C6) -> 12104 | C76: 1.1590 | D76: =IF($C$3="Trawl",Indices!B6,Indices!C6) -> 101706 | E76: 0.6759 | G76: 675 | H76: -10% | I76: 675 | J76: -10% | K76: -10% | N76: 4 | O76: 3 | P76: 355 | Q76: 894
A77: 2003 | B77: =IF($B$3="Trawl",Indices!B7,Indices!C7) -> 10866 | C77: 1.0404 | D77: =IF($C$3="Trawl",Indices!B7,Indices!C7) -> 132151 | E77: 0.8783 | G77: 675 | H77: 0% | I77: 675 | J77: 0% | K77: 0% | N77: 6 | O77: 5 | P77: 355 | Q77: 894
A78: 2004 | B78: =IF($B$3="Trawl",Indices!B8,Indices!C8) -> 9987 | C78: 0.9563 | D78: =IF($C$3="Trawl",Indices!B8,Indices!C8) -> 130075 | E78: 0.8645 | G78: 675 | H78: 0% | I78: 675 | J78: 0% | K78: 0% | N78: 6 | O78: 5 | P78: 355 | Q78: 894
A79: 2005 | B79: =IF($B$3="Trawl",Indices!B9,Indices!C9) -> 9550 | C79: 0.9144 | D79: =IF($C$3="Trawl",Indices!B9,Indices!C9) -> 132518 | E79: 0.8807 | G79: 639 | H79: -5% | I79: 639 | J79: -5% | K79: -5% | N79: 7 | O79: 5 | P79: 355 | Q79: 894
A80: 2006 | B80: =IF($B$3="Trawl",Indices!B10,Indices!C10) -> 9802 | C80: 0.9386 | D80: =IF($C$3="Trawl",Indices!B10,Indices!C10) -> 155964 | E80: 1.0365 | G80: 675 | H80: 6% | I80: 675 | J80: 6% | K80: 6% | N80: 7 | O80: 6 | P80: 355 | Q80: 894
A81: 2007 | B81: =IF($B$3="Trawl",Indices!B11,Indices!C11) -> 9673 | C81: 0.9262 | D81: =IF($C$3="Trawl",Indices!B11,Indices!C11) -> 143903 | E81: 0.9564 | G81: 675 | H81: 0% | I81: 675 | J81: 0% | K81: 0% | N81: 7 | O81: 6 | P81: 355 | Q81: 894
A82: 2008 | B82: =IF($B$3="Trawl",Indices!B12,Indices!C12) -> 10264 | C82: 0.9828 | D82: =IF($C$3="Trawl",Indices!B12,Indices!C12) -> 140247 | E82: 0.9321 | G82: 675 | H82: 0% | I82: 675 | J82: 0% | K82: 0% | N82: 6 | O82: 5 | P82: 355 | Q82: 894
A83: 2009 | B83: =IF($B$3="Trawl",Indices!B13,Indices!C13) -> 9834 | C83: 0.9416 | D83: =IF($C$3="Trawl",Indices!B13,Indices!C13) -> 168102 | E83: 1.1172 | G83: 710 | H83: 5% | I83: 710 | J83: 5% | K83: 5% | N83: 7 | O83: 7 | P83: 355 | Q83: 894
A84: 2010 | B84: =IF($B$3="Trawl",Indices!B14,Indices!C14) -> 9146 | C84: 0.8758 | D84: =IF($C$3="Trawl",Indices!B14,Indices!C14) -> 195535 | E84: 1.2995 | G84: 747 | H84: 5% | I84: 747 | J84: 5% | K84: 5% | N84: 7 | O84: 9 | P84: 355 | Q84: 894
A85: 2011 | B85: =IF($B$3="Trawl",Indices!B15,Indices!C15) -> 8669 | C85: 0.8301 | D85: =IF($C$3="Trawl",Indices!B15,Indices!C15) -> 186666 | E85: 1.2405 | G85: 710 | H85: -5% | I85: 710 | J85: -5% | K85: -5% | N85: 8 | O85: 8 | P85: 355 | Q85: 894
A86: 2012 | B86: =IF($B$3="Trawl",Indices!B16,Indices!C16) -> 8403 | C86: 0.8046 | D86: =IF($C$3="Trawl",Indices!B16,Indices!C16) -> 189000 | E86: 1.2561 | G86: 728 | H86: 3% | I86: 728 | J86: 3% | K86: 3% | N86: 8 | O86: 9 | P86: 355 | Q86: 894
A87: 2013 | B87: =IF($B$3="Trawl",Indices!B17,Indices!C17) -> 7989 | C87: 0.7650 | D87: =IF($C$3="Trawl",Indices!B17,Indices!C17) -> 183989 | E87: 1.2228 | G87: 710 | H87: -3% | I87: 710 | J87: -3% | K87: -3% | N87: 8 | O87: 8 | P87: 355 | Q87: 894
A88: 2014 | B88: =IF($B$3="Trawl",Indices!B18,Indices!C18) -> 7995 | C88: 0.7655 | D88: =IF($C$3="Trawl",Indices!B18,Indices!C18) -> 171427 | E88: 1.1393 | G88: 675 | H88: -5% | I88: 675 | J88: -5% | K88: -5% | N88: 8 | O88: 7 | P88: 355 | Q88: 894
A89: 2015 | B89: =IF($B$3="Trawl",Indices!B19,Indices!C19) -> 8130 | C89: 0.7785 | D89: =IF($C$3="Trawl",Indices!B19,Indices!C19) -> 172237 | E89: 1.1447 | G89: 675 | H89: 0% | I89: 675 | J89: 0% | K89: 0% | N89: 8 | O89: 7 | P89: 355 | Q89: 894
A90: 2016 | B90: =IF($B$3="Trawl",Indices!B20,Indices!C20) -> 7826 | C90: 0.7494 | D90: =IF($C$3="Trawl",Indices!B20,Indices!C20) -> 153704 | E90: 1.0215 | G90: 604 | H90: -11% | I90: 604 | J90: -11% | K90: -11% | N90: 9 | O90: 6 | P90: 355 | Q90: 894
A91: 2017 | B91: =IF($B$3="Trawl",Indices!B21,Indices!C21) -> 7250 | C91: 0.6942 | D91: =IF($C$3="Trawl",Indices!B21,Indices!C21) -> 126684 | E91: 0.8419 | G91: 533 | H91: -12% | I91: 533 | J91: -12% | K91: -12% | N91: 9 | O91: 4 | P91: 355 | Q91: 894
A92: 2018 | B92: =IF($B$3="Trawl",Indices!B22,Indices!C22) -> 7141 | C92: 0.6838 | D92: =IF($C$3="Trawl",Indices!B22,Indices!C22) -> 125702 | E92: 0.8354 | G92: 533 | H92: 0% | I92: =IF(H92>0,IF(ABS(H92)>$H$8,G91*(1+SIGN(H92)*$H$8),G92),IF(ABS(H92)>$H$9,G91*(1+SIGN(H92)*$H$9),G92)) -> 533 | J92: 0% | K92: 0% | N92: 9 | O92: 4 | P92: 355 | Q92: 894
A94: what-if | B94: 100000 | C94: 9.5753 | D94: 100000 | E94: 0.6646 | G94: 747 | H94: =(G94-G92)/G92 -> 40% | I94: =IF(H94>0,IF(ABS(H94)>$H$8,G92*(1+SIGN(H94)*$H$8),G94),IF(ABS(H94)>$H$9,G92*(1+SIGN(H94)*$H$9),G94)) -> 612 | J94: =(G94-I92)/I92 -> 40% | K94: =(I94-I92)/I92 -> 15% | N94: 1 | O94: 3
C96: Secondary Index Standardized to average
A97: Primary Index Standardzied to average | C97: 0.5 | D97: 0.6 | E97: 0.7 | F97: 0.8 | G97: 0.9 | H97: 1 | I97: 1.1 | J97: 1.2 | K97: 1.3 | L97: 1.4 | M97: 1.5 | O97: slopeHi | P97: slopeLow
B98: 1.5 | C98: =$F$4 -> 710 | D98: =C98+$O$98*(D$97-C$97) -> 728 | E98: =D98+$O$98*(E$97-D$97) -> 747 | F98: 765 | G98: 784 | H98: 802 | I98: 820 | J98: 839 | K98: 857 | L98: 876 | M98: =G4 -> 894 | O98: =(M98-C98)/(M97-C97) -> 184 | P98: =(M108-C108)/(M97-C97) -> 355
B99: 1.4 | C99: =C98+$P$98*(B99-B98) -> 675 | D99: =$F$4 -> 710 | E99: 728 | F99: 747 | G99: 765 | H99: 784 | I99: 802 | J99: 820 | K99: 839 | L99: 857 | M99: =M98+$O$98*(B99-B98) -> 876
B100: 1.3 | C100: =C99+$P$98*(B100-B99) -> 639 | D100: =C100+$P$98*(D$97-C$97) -> 675 | E100: =$F$4 -> 710 | F100: 728 | G100: 747 | H100: 765 | I100: 784 | J100: 802 | K100: 820 | L100: 839 | M100: =M99+$O$98*(B100-B99) -> 857
B101: 1.2 | C101: 604 | D101: 639 | E101: 675 | F101: =$F$4 -> 710 | G101: 728 | H101: 747 | I101: 765 | J101: 784 | K101: 802 | L101: 820 | M101: 839
B102: 1.1 | C102: 568 | D102: 604 | E102: 639 | F102: 675 | G102: =$F$4 -> 710 | H102: 728 | I102: 747 | J102: 765 | K102: 784 | L102: 802 | M102: 820
B103: 1 | C103: 533 | D103: 568 | E103: 604 | F103: 639 | G103: 675 | H103: =F4 -> 710 | I103: 728 | J103: 747 | K103: 765 | L103: 784 | M103: 802
B104: 0.9 | C104: 497 | D104: 533 | E104: 568 | F104: 604 | G104: 639 | H104: 675 | I104: =$F$4 -> 710 | J104: 728 | K104: 747 | L104: 765 | M104: 784
B105: 0.8 | C105: 462 | D105: 497 | E105: 533 | F105: 568 | G105: 604 | H105: 639 | I105: 675 | J105: =$F$4 -> 710 | K105: 728 | L105: 747 | M105: 765
B106: 0.7 | C106: 426 | D106: 462 | E106: 497 | F106: 533 | G106: 568 | H106: 604 | I106: 639 | J106: 675 | K106: =$F$4 -> 710 | L106: 728 | M106: 747
B107: 0.6 | C107: 391 | D107: 426 | E107: 462 | F107: 497 | G107: 533 | H107: 568 | I107: 604 | J107: 639 | K107: 675 | L107: =$F$4 -> 710 | M107: 728
B108: 0.5 | C108: =H4 -> 355 | D108: =C108+$P$98*(D$97-C$97) -> 391 | E108: 426 | F108: 462 | G108: 497 | H108: 533 | I108: 568 | J108: 604 | K108: 639 | L108: 675 | M108: =$F$4 -> 710

Sheet Alt3-3a
A1: PSC Limit | B1: Primary Index | C1: Second Index | F1: Element 1 | G1: Element 2 | H1: Element 3
A2: Trawl | B2: Setline | C2: =IF(B2="Trawl","Setline","Trawl") -> Trawl | E2: Gear | F2: Starting point | G2: Ceiling | H2: Floor
A3: Non-trawl | B3: Setline | C3: =IF(B3="Trawl","Setline","Trawl") -> Trawl | E3: Trawl | F3: 1563 | G3: 2805 | H3: 798
E4: Non-trawl | F4: 395 | G4: 710 | H4: 202
E5: Total | F5: =SUM(F3:F4) -> 1958 | G5: =SUM(G3:G4) -> 3515 | H5: =SUM(H3:H4) -> 1000
A6: Element 4: Breakpoint
A7: Low Threshold | B7: 1 | D7: Element 5: slope multiplier | G7: Element 6 Constraint
A8: High Threshold | B8: 1 | D8: Low Multiplier | E8: 0.35 | G8: Up | H8: 20%
D9: High Multiplier | E9: 0.35 | G9: Down | H9: 20%
A10: Standardized Year or Mean
B11: Primary | C11: Secondary
A12: Trawl | B12: 2018 | C12: 2018 | D12: =VLOOKUP(B12,A32:D52,2) -> 7141 | E12: =IF(C12="Mean",AVERAGE(D32:D52),VLOOKUP(C12,A32:D52,4)) -> 125702
A13: Non-trawl | B13: 2018 | C13: 2018 | D13: =VLOOKUP(B13,A58:D78,2) -> 7141 | E13: =IF(C13="Mean",AVERAGE(D58:D78),VLOOKUP(C13,A58:D78,4)) -> 125702
A30: TRAWL PSC LIMIT
A31: Year | B31: Primary index | C31: Standardized Primary | D31: Secondary index | E31: Standardized Secondary | G31: PSC Limit without Element 6 | H31: % change without element 6 | I31: PSC Limit with Element 6 | J31: Potential Percent change | K31: Actual Percent Change | N31: slope modifier for Alt 3 | O31: Floor | P31: Ceiling
A32: 1998 | B32: =IF($B$2="Trawl",Indices!B2,Indices!C2) -> 18502 | C32: =B32/D$12 -> 2.5910 | D32: =IF($C$2="Trawl",Indices!B2,Indices!C2) -> 161256 | E32: =D32/E$12 -> 1.2828 | G32: =MIN($G$3,MAX($H$3,$F$3*(1-1*(1-(C32+N32))))) -> 2,805 | I32: =G32 -> 2,805 | N32: =IF(E32<$B$7,$E$8*(E32-$B$7),IF(E32>$B$8,$E$9*(E32-$B$8),0)) -> 0.09899524272 | O32: =$H$3 -> 798 | P32: =$G$3 -> 2805
A33: 1999 | B33: =IF($B$2="Trawl",Indices!B3,Indices!C3) -> 16201 | C33: 2.2687 | D33: =IF($C$2="Trawl",Indices!B3,Indices!C3) -> 129116 | E33: =D33/E$12 -> 1.0272 | G33: 2,805 | H33: =(G33-G32)/G32 -> 0% | I33: =IF(J33>0,IF(ABS(J33)>$H$8,I32*(1+SIGN(J33)*$H$8),G33),IF(ABS(J33)>$H$9,I32*(1+SIGN(J33)*$H$9),G33)) -> 2,805 | J33: =(G33-I32)/I32 -> 0% | K33: =(I33-I32)/I32 -> 0% | N33: 0.009505815341 | O33: 798 | P33: 2805
A34: 2000 | B34: =IF($B$2="Trawl",Indices!B4,Indices!C4) -> 16203 | C34: 2.2690 | D34: =IF($C$2="Trawl",Indices!B4,Indices!C4) -> 118677 | E34: 0.9441 | G34: 2,805 | H34: =(G34-G33)/G33 -> 0% | I34: 2,805 | J34: 0% | K34: =(I34-I33)/I33 -> 0% | N34: -0.0195601502 | O34: 798 | P34: 2805
A35: 2001 | B35: =IF($B$2="Trawl",Indices!B5,Indices!C5) -> 13780 | C35: 1.9297 | D35: =IF($C$2="Trawl",Indices!B5,Indices!C5) -> 141219 | E35: 1.1234 | G35: 2,805 | H35: 0% | I35: 2,805 | J35: 0% | K35: =(I35-I34)/I34 -> 0% | N35: 0.04320496094 | O35: 798 | P35: 2805
A36: 2002 | B36: =IF($B$2="Trawl",Indices!B6,Indices!C6) -> 12104 | C36: 1.6950 | D36: =IF($C$2="Trawl",Indices!B6,Indices!C6) -> 101706 | E36: 0.8091 | G36: 2,545 | H36: -9% | I36: 2,545 | J36: -9% | K36: -9% | N36: -0.06681357496 | O36: 798 | P36: 2805
A37: 2003 | B37: =IF($B$2="Trawl",Indices!B7,Indices!C7) -> 10866 | C37: 1.5216 | D37: =IF($C$2="Trawl",Indices!B7,Indices!C7) -> 132151 | E37: 1.0513 | G37: 2,406 | H37: -5% | I37: 2,406 | J37: -5% | K37: -5% | N37: 0.0179563571 | O37: 798 | P37: 2805
A38: 2004 | B38: =IF($B$2="Trawl",Indices!B8,Indices!C8) -> 9987 | C38: 1.3985 | D38: =IF($C$2="Trawl",Indices!B8,Indices!C8) -> 130075 | E38: 1.0348 | G38: 2,205 | H38: -8% | I38: 2,205 | J38: -8% | K38: -8% | N38: 0.01217601947 | O38: 798 | P38: 2805
A39: 2005 | B39: =IF($B$2="Trawl",Indices!B9,Indices!C9) -> 9550 | C39: 1.3373 | D39: =IF($C$2="Trawl",Indices!B9,Indices!C9) -> 132518 | E39: 1.0542 | G39: 2,120 | H39: -4% | I39: 2,120 | J39: -4% | K39: -4% | N39: 0.01897821833 | O39: 798 | P39: 2805
A40: 2006 | B40: =IF($B$2="Trawl",Indices!B10,Indices!C10) -> 9802 | C40: 1.3726 | D40: =IF($C$2="Trawl",Indices!B10,Indices!C10) -> 155964 | E40: 1.2407 | G40: 2,277 | H40: 7% | I40: 2,277 | J40: 7% | K40: 7% | N40: 0.08426039363 | O40: 798 | P40: 2805
A41: 2007 | B41: =IF($B$2="Trawl",Indices!B11,Indices!C11) -> 9673 | C41: 1.3546 | D41: =IF($C$2="Trawl",Indices!B11,Indices!C11) -> 143903 | E41: 1.1448 | G41: 2,196 | H41: -4% | I41: 2,196 | J41: -4% | K41: -4% | N41: 0.05067819128 | O41: 798 | P41: 2805
A42: 2008 | B42: =IF($B$2="Trawl",Indices!B12,Indices!C12) -> 10264 | C42: 1.4373 | D42: =IF($C$2="Trawl",Indices!B12,Indices!C12) -> 140247 | E42: 1.1157 | G42: 2,310 | H42: 5% | I42: 2,310 | J42: 5% | K42: 5% | N42: 0.04049856009 | O42: 798 | P42: 2805
A43: 2009 | B43: =IF($B$2="Trawl",Indices!B13,Indices!C13) -> 9834 | C43: 1.3771 | D43: =IF($C$2="Trawl",Indices!B13,Indices!C13) -> 168102 | E43: 1.3373 | G43: 2,337 | H43: 1% | I43: 2,337 | J43: 1% | K43: 1% | N43: 0.1180569919 | O43: 798 | P43: 2805
A44: 2010 | B44: =IF($B$2="Trawl",Indices!B14,Indices!C14) -> 9146 | C44: 1.2808 | D44: =IF($C$2="Trawl",Indices!B14,Indices!C14) -> 195535 | E44: 1.5555 | G44: 2,306 | H44: -1% | I44: 2,306 | J44: -1% | K44: -1% | N44: 0.1944404226 | O44: 798 | P44: 2805
A45: 2011 | B45: =IF($B$2="Trawl",Indices!B15,Indices!C15) -> 8669 | C45: 1.2140 | D45: =IF($C$2="Trawl",Indices!B15,Indices!C15) -> 186666 | E45: 1.4850 | G45: 2,163 | H45: -6% | I45: 2,163 | J45: -6% | K45: -6% | N45: 0.169745907 | O45: 798 | P45: 2805
A46: 2012 | B46: =IF($B$2="Trawl",Indices!B16,Indices!C16) -> 8403 | C46: 1.1767 | D46: =IF($C$2="Trawl",Indices!B16,Indices!C16) -> 189000 | E46: 1.5036 | G46: 2,115 | H46: -2% | I46: 2,115 | J46: -2% | K46: -2% | N46: 0.1762446103 | O46: 798 | P46: 2805
A47: 2013 | B47: =IF($B$2="Trawl",Indices!B17,Indices!C17) -> 7989 | C47: 1.1188 | D47: =IF($C$2="Trawl",Indices!B17,Indices!C17) -> 183989 | E47: 1.4637 | G47: 2,002 | H47: -5% | I47: 2,002 | J47: -5% | K47: -5% | N47: 0.1622921672 | O47: 798 | P47: 2805
A48: 2014 | B48: =IF($B$2="Trawl",Indices!B18,Indices!C18) -> 7995 | C48: 1.1196 | D48: =IF($C$2="Trawl",Indices!B18,Indices!C18) -> 171427 | E48: 1.3638 | G48: 1,949 | H48: -3% | I48: 1,949 | J48: -3% | K48: -3% | N48: 0.127314999 | O48: 798 | P48: 2805
A49: 2015 | B49: =IF($B$2="Trawl",Indices!B19,Indices!C19) -> 8130 | C49: 1.1385 | D49: =IF($C$2="Trawl",Indices!B19,Indices!C19) -> 172237 | E49: 1.3702 | G49: 1,982 | H49: 2% | I49: 1,982 | J49: 2% | K49: 2% | N49: 0.129570333 | O49: 798 | P49: 2805
A50: 2016 | B50: =IF($B$2="Trawl",Indices!B20,Indices!C20) -> 7826 | C50: 1.0959 | D50: =IF($C$2="Trawl",Indices!B20,Indices!C20) -> 153704 | E50: 1.2228 | G50: 1,835 | H50: -7% | I50: 1,835 | J50: -7% | K50: -7% | N50: 0.07796773321 | O50: 798 | P50: 2805
A51: 2017 | B51: =IF($B$2="Trawl",Indices!B21,Indices!C21) -> 7250 | C51: 1.0153 | D51: =IF($C$2="Trawl",Indices!B21,Indices!C21) -> 126684 | E51: 1.0078 | G51: 1,591 | H51: -13% | I51: 1,591 | J51: -13% | K51: -13% | N51: 0.002734244483 | O51: 798 | P51: 2805
A52: 2018 | B52: =IF($B$2="Trawl",Indices!B22,Indices!C22) -> 7141 | C52: 1.0000 | D52: =IF($C$2="Trawl",Indices!B22,Indices!C22) -> 125702 | E52: 1.0000 | G52: 1,563 | H52: -2% | I52: 1,563 | J52: -2% | K52: -2%
A54: what-if | B54: 9000 | C54: =B54/$D$12 -> 1.260327685 | D54: 100000 | E54: =D54/$E$12 -> 0.7955322907 | G54: =MIN($G$3,MAX($H$3,$F$3*(1-1*(1-(C54+N54))))) -> 1,858 | H54: =(G54-G51)/G51 -> 17% | I54: =IF(ABS(J54)>$H$8,I51*(1+SIGN(J54)*$H$8),G54) -> 1,858 | J54: =(G54-I51)/I51 -> 17% | K54: =(I54-I51)/I51 -> 17% | N54: =IF(E54<$B$7,$E$8*(E54-$B$7),IF(E54>$B$8,$E$9*(E54-$B$8),0)) -> -0.07156369827
A56: NON-TRAWL PSC LIMIT
A57: Year | B57: Primary index | C57: Standardized Primary | D57: Secondary index | E57: Standardized Secondary | G57: PSC Limit without Element 6 | H57: % change without element 6 | I57: PSC Limit with Element 6 | J57: Potential Percent change | K57: Actual Percent Change | N57: slope modifier for Alt 3
A58: 1998 | B58: =IF($B$3="Trawl",Indices!B2,Indices!C2) -> 18502 | C58: =B58/D$13 -> 2.5910 | D58: =IF($C$3="Trawl",Indices!B2,Indices!C2) -> 161256 | E58: =D58/E$13 -> 1.2828 | G58: =MIN($G$4,MAX($H$4,$F$4*(1-1*(1-(C58+N58))))) -> 710 | I58: =G58 -> 710 | N58: =IF(E58<$B$7,$E$8*(E58-$B$7),IF(E58>$B$8,$E$9*(E58-$B$8),0)) -> 0.09899524272
A59: 1999 | B59: =IF($B$3="Trawl",Indices!B3,Indices!C3) -> 16201 | C59: =B59/D$13 -> 2.2687 | D59: =IF($C$3="Trawl",Indices!B3,Indices!C3) -> 129116 | E59: =D59/E$13 -> 1.0272 | G59: =MIN($G$4,MAX($H$4,$F$4*(1-1*(1-(C59+N59))))) -> 710 | H59: =(G59-G58)/G58 -> 0% | I59: =IF(J59>0,IF(ABS(J59)>$H$8,I58*(1+SIGN(J59)*$H$8),G59),IF(ABS(J59)>$H$9,I58*(1+SIGN(J59)*$H$9),G59)) -> 710 | J59: =(G59-I58)/I58 -> 0% | K59: =(I59-I58)/I58 -> 0% | N59: 0.009505815341
A60: 2000 | B60: =IF($B$3="Trawl",Indices!B4,Indices!C4) -> 16203 | C60: 2.2690 | D60: =IF($C$3="Trawl",Indices!B4,Indices!C4) -> 118677 | E60: 0.9441 | G60: 710 | H60: =(G60-G59)/G59 -> 0% | I60: 710 | J60: 0% | K60: =(I60-I59)/I59 -> 0% | N60: -0.0195601502
A61: 2001 | B61: =IF($B$3="Trawl",Indices!B5,Indices!C5) -> 13780 | C61: 1.9297 | D61: =IF($C$3="Trawl",Indices!B5,Indices!C5) -> 141219 | E61: 1.1234 | G61: 710 | H61: 0% | I61: 710 | J61: 0% | K61: =(I61-I60)/I60 -> 0% | N61: 0.04320496094
A62: 2002 | B62: =IF($B$3="Trawl",Indices!B6,Indices!C6) -> 12104 | C62: 1.6950 | D62: =IF($C$3="Trawl",Indices!B6,Indices!C6) -> 101706 | E62: 0.8091 | G62: 643 | H62: -9% | I62: 643 | J62: -9% | K62: -9% | N62: -0.06681357496
A63: 2003 | B63: =IF($B$3="Trawl",Indices!B7,Indices!C7) -> 10866 | C63: 1.5216 | D63: =IF($C$3="Trawl",Indices!B7,Indices!C7) -> 132151 | E63: 1.0513 | G63: 608 | H63: -5% | I63: 608 | J63: -5% | K63: -5% | N63: 0.0179563571
A64: 2004 | B64: =IF($B$3="Trawl",Indices!B8,Indices!C8) -> 9987 | C64: 1.3985 | D64: =IF($C$3="Trawl",Indices!B8,Indices!C8) -> 130075 | E64: 1.0348 | G64: 557 | H64: -8% | I64: 557 | J64: -8% | K64: -8% | N64: 0.01217601947
A65: 2005 | B65: =IF($B$3="Trawl",Indices!B9,Indices!C9) -> 9550 | C65: 1.3373 | D65: =IF($C$3="Trawl",Indices!B9,Indices!C9) -> 132518 | E65: 1.0542 | G65: 536 | H65: -4% | I65: 536 | J65: -4% | K65: -4% | N65: 0.01897821833
A66: 2006 | B66: =IF($B$3="Trawl",Indices!B10,Indices!C10) -> 9802 | C66: 1.3726 | D66: =IF($C$3="Trawl",Indices!B10,Indices!C10) -> 155964 | E66: 1.2407 | G66: 575 | H66: 7% | I66: 575 | J66: 7% | K66: 7% | N66: 0.08426039363
A67: 2007 | B67: =IF($B$3="Trawl",Indices!B11,Indices!C11) -> 9673 | C67: 1.3546 | D67: =IF($C$3="Trawl",Indices!B11,Indices!C11) -> 143903 | E67: 1.1448 | G67: 555 | H67: -4% | I67: 555 | J67: -4% | K67: -4% | N67: 0.05067819128
A68: 2008 | B68: =IF($B$3="Trawl",Indices!B12,Indices!C12) -> 10264 | C68: 1.4373 | D68: =IF($C$3="Trawl",Indices!B12,Indices!C12) -> 140247 | E68: 1.1157 | G68: 584 | H68: 5% | I68: 584 | J68: 5% | K68: 5% | N68: 0.04049856009
A69: 2009 | B69: =IF($B$3="Trawl",Indices!B13,Indices!C13) -> 9834 | C69: 1.3771 | D69: =IF($C$3="Trawl",Indices!B13,Indices!C13) -> 168102 | E69: 1.3373 | G69: 591 | H69: 1% | I69: 591 | J69: 1% | K69: 1% | N69: 0.1180569919
A70: 2010 | B70: =IF($B$3="Trawl",Indices!B14,Indices!C14) -> 9146 | C70: 1.2808 | D70: =IF($C$3="Trawl",Indices!B14,Indices!C14) -> 195535 | E70: 1.5555 | G70: 583 | H70: -1% | I70: 583 | J70: -1% | K70: -1% | N70: 0.1944404226
A71: 2011 | B71: =IF($B$3="Trawl",Indices!B15,Indices!C15) -> 8669 | C71: 1.2140 | D71: =IF($C$3="Trawl",Indices!B15,Indices!C15) -> 186666 | E71: 1.4850 | G71: 547 | H71: -6% | I71: 547 | J71: -6% | K71: -6% | N71: 0.169745907
A72: 2012 | B72: =IF($B$3="Trawl",Indices!B16,Indices!C16) -> 8403 | C72: 1.1767 | D72: =IF($C$3="Trawl",Indices!B16,Indices!C16) -> 189000 | E72: 1.5036 | G72: 534 | H72: -2% | I72: 534 | J72: -2% | K72: -2% | N72: 0.1762446103
A73: 2013 | B73: =IF($B$3="Trawl",Indices!B17,Indices!C17) -> 7989 | C73: 1.1188 | D73: =IF($C$3="Trawl",Indices!B17,Indices!C17) -> 183989 | E73: 1.4637 | G73: 506 | H73: -5% | I73: 506 | J73: -5% | K73: -5% | N73: 0.1622921672
A74: 2014 | B74: =IF($B$3="Trawl",Indices!B18,Indices!C18) -> 7995 | C74: 1.1196 | D74: =IF($C$3="Trawl",Indices!B18,Indices!C18) -> 171427 | E74: 1.3638 | G74: 493 | H74: -3% | I74: 493 | J74: -3% | K74: -3% | N74: 0.127314999
A75: 2015 | B75: =IF($B$3="Trawl",Indices!B19,Indices!C19) -> 8130 | C75: 1.1385 | D75: =IF($C$3="Trawl",Indices!B19,Indices!C19) -> 172237 | E75: 1.3702 | G75: 501 | H75: 2% | I75: 501 | J75: 2% | K75: 2% | N75: 0.129570333
A76: 2016 | B76: =IF($B$3="Trawl",Indices!B20,Indices!C20) -> 7826 | C76: 1.0959 | D76: =IF($C$3="Trawl",Indices!B20,Indices!C20) -> 153704 | E76: 1.2228 | G76: 464 | H76: -7% | I76: 464 | J76: -7% | K76: -7% | N76: 0.07796773321
A77: 2017 | B77: =IF($B$3="Trawl",Indices!B21,Indices!C21) -> 7250 | C77: 1.0153 | D77: =IF($C$3="Trawl",Indices!B21,Indices!C21) -> 126684 | E77: 1.0078 | G77: 402 | H77: -13% | I77: 402 | J77: -13% | K77: -13% | N77: 0.002734244483
A78: 2018 | B78: =IF($B$3="Trawl",Indices!B22,Indices!C22) -> 7141 | C78: 1.0000 | D78: =IF($C$3="Trawl",Indices!B22,Indices!C22) -> 125702 | E78: 1.0000 | G78: 395 | H78: -2% | I78: 395 | J78: -2% | K78: -2%
A80: what-if | B80: 9000 | C80: 1.2603 | D80: 100000 | E80: 0.7955 | G80: 470 | H80: =(G80-G77)/G77 -> 17% | I80: =IF(ABS(J80)>$H$8,I77*(1+SIGN(J80)*$H$8),G80) -> 470 | J80: =(G80-I77)/I77 -> 17% | K80: =(I80-I77)/I77 -> 17% | N80: =IF(E80<$B$7,$E$8*(E80-$B$7),IF(E80>$B$8,$E$9*(E80-$B$8),0)) -> -0.07156369827

Sheet Indices
A1: Year | B1: Trawl | C1: Setline
A2: 1998 | B2: 161256 | C2: 18502
A3: 1999 | B3: 129116 | C3: 16201
A4: 2000 | B4: 118677 | C4: 16203
A5: 2001 | B5: 141219 | C5: 13780
A6: 2002 | B6: 101706 | C6: 12104
A7: 2003 | B7: 132151 | C7: 10866
A8: 2004 | B8: 130075 | C8: 9987
A9: 2005 | B9: 132518 | C9: 9550
A10: 2006 | B10: 155964 | C10: 9802
A11: 2007 | B11: 143903 | C11: 9673
A12: 2008 | B12: 140247 | C12: 10264
A13: 2009 | B13: 168102 | C13: 9834
A14: 2010 | B14: 195535 | C14: 9146
A15: 2011 | B15: 186666 | C15: 8669
A16: 2012 | B16: 189000 | C16: 8403
A17: 2013 | B17: 183989 | C17: 7989
A18: 2014 | B18: 171427 | C18: 7995
A19: 2015 | B19: 172237 | C19: 8130
A20: 2016 | B20: 153704 | C20: 7826
A21: 2017 | B21: 126684 | C21: 7250
A22: 2018 | B22: 125702 | C22: 7141
A23: Mean | B23: =AVERAGE(B2:B22) -> 150470 | C23: =AVERAGE(C2:C22) -> 10444
A25: As calculated in early 2019
